Workbook

Sheet Triangle
C1: Instructions: Triangle (v2) is an application to develop sand, silt, and clay low, representative, and high values. Choose textures by clicking on the triangle. These toggle on and off. Use sand, silt, & clay limits as needed and the triangle and percents will update. Optionally, populate other yellow cells. If you populate the control section depths, it will calculate the control section sand, silt, and clay at the bottom. You must populate the Soil Name row and then Copy, Paste Special (values) to the section below for this to work. Allowed textures are C, CL, L, SC, SCL, SI, SIC, SICL, SIL, COS, S, FS, VFS, LCOS, LS, LFS, LVFS, COSL, SL, FSL, & VFSL. For sand size-dependent textures, you must select on the triangle and the small texture rectangles. Representative texture must be populated for RV S, Si, C to plot. Use the "Clear" button to start a new row/horizon. It will leave the control section and soil name populated. Remember to copy/paste the row before clearing.
C2: Sand, Silt, Clay Limits
D3: Clay Low | F3: Clay High
D4: Sand Low | F4: Sand High
D5: Silt Low | F5: Silt High
C7: Control Section (cm)
D8: Low | F8: High
C10: Soil Name / Map Unit / ID | D10: Horizon | E10: Depth (cm) | G10: Rep Texture | H10: Other Textures | I10: Percent Sand | L10: Percent Silt | O10: Percent Clay
E11: Low | F11: High | I11: Low | J11: RV | K11: High | L11: Low | M11: RV | N11: High | O11: Low | P11: RV | Q11: High
H12: =Limits!AG8144 ->  | I12: =Limits!AH8116 ->  | K12: =Limits!AH8117 ->  | L12: =Limits!AI8116 ->  | N12: =Limits!AI8117 ->  | O12: =Limits!AG8116 ->  | Q12: =Limits!AG8117 -> 
G13: =IF(AND(G12<>"S",G12<>"LS",G12<>"SL",G12<>"L",G12<>"SIL",G12<>"SI",G12<>"SCL",G12<>"CL",G12<>"SICL",G12<>"SC",G12<>"SIC",G12<>"C",G12<>"COS",G12<>"FS",G12<>"VFS",G12<>"LCOS",G12<>"LFS",G12<>"LVFS",G12<>"COSL",G12<>"FSL",G12<>"VFSL",G12<>""),"This is not an allowed texture","") ->  | Q13: =IF(OR(J12="",M12="",P12="",J12+M12+P12=100,J12+M12+P12=0), "","S, Si, C RVs do not equal 100" & " (= " & J12+M12+P12 & ")") -> 
G14: =IF(TextureData!I26=1,"This representative texture has not been selected","") ->  | Q14: =IF(OR(J12="",M12="",P12=""),"",IF(Limits!AF8177>0,"This combination of S, Si, C RVs does not match the representative texture","")) -> 
C15: When finished with the row above, Copy, Paste Special (values) below | Q15: =IF(Limits!AD8174>0,"This combination of S, Si, C RVs is on the line between 2 or more textures","") -> 
C31: Control Section | D31: Sand | E31: =E85 -> 
D32: Silt | E32: =F85 ->  | G32: (scroll down for calculations)
D33: Clay | E33: =G85 -> 
D34: Total | E34: =SUM(E31:E33) -> 0
I37: Send comments or suggestions to: | L37: mark.vanlear@usda.gov
D70: Control Section | E70: Sand | F70: Silt | G70: Clay
D71: =IF(OR(F16<=$E$8,E16>$G$8),"",IF(AND(E16>=$E$8,F16<=$G$8),F16-E16,IF(AND(E16,$E$8,F16<=$G$8),F16-$E$8,$G$8-E16))) ->  | E71: =IF(D71="","",D71*J16) ->  | F71: =IF(D71="","",D71*M16) ->  | G71: =IF(D71="","",D71*P16) -> 
E85: =IF(SUM(E71:E84)=0,"",SUM(E71:E84)/($G$8-$E$8)) ->  | F85: =IF(SUM(F71:F84)=0,"",SUM(F71:F84)/($G$8-$E$8)) ->  | G85: =IF(SUM(G71:G84)=0,"",SUM(G71:G84)/($G$8-$E$8)) -> 

Sheet Examples
A1: Madison Ap horizon
A34: Madison BE horizon
A67: Madison Bt horizon
A100: Madison BC horizon
A133: Madison C horizon

Sheet Complete Instructions
B1: Triangle_v2: Instructions (screenshots are dated and still show version 1)
B3: Populate yellow cells on the Triangle tab. All other cells are protected to prevent accidental changes. Select textures by clicking on the triangle. These toggle on and off. If you select sand, loamy sand, or sandy loam on the triangle, you will be prompted to also select one or more sand size-dependent textures (small rectangles). For example:
B45: This warning goes away when one or more (correct) sand size-dependent textures are selected. For example:
B84: If you select an incorrect sand size-dependent texture, a second warning will occur. For example:
B123: It is worth noting that the size of the sand grains does not affect pecentages. In fact, any of the three textures (sand, loamy sand, or sandy loam) could be selected without specifying if it is coarse, medium, fine, or very fine sand. However, it is designed so that an accurate list of textures will be available for later use or in other applications. Notice as you select textures on the triangle and sand size-dependent textures, the "Other Textures" cell auto populates. The textures will update if you make one of them the representative texture. Notice that the sand, silt, and clay low and high percentages also auto populate. See below:
B167: The full range of each texture is automatically added to the sand, silt, and clay percentages. This is evidenced by the dots on the triangle. Use the sand, silt, and clay limits section to adjust the ranges however you like. The percentages and triangle automatically update as you populate this section. Only the dotted portion of the triangle is included in your range. Whole numbers between 1 and 99 are allowed in the limits section although they show as one decimal. See below:
B210: Populate the representative values (RVs) of sand, silt, and clay and the point will plot on the triangle. Values must be whole numbers between or equal to the low and high values and the representative texture must be entered as well. See below:
B250: There are a number of built-in checks and warnings regarding the representative texture and the sand, silt, and clay RVs. As already mentioned, If you populate the RVs, but fail to select a representative texture, the point will not plot on the triangle.
B254: If you choose a representative texture that is not selected on the triangle or sand size-dependent texture section, the following warning will show:
B263: If you choose RVs that do not correspond to the representative texture, the following warning will show:
B272: If your RVs do not addd up to 100, the following warning will show:
B280: If you choose RVs that put the point on a line between textures, the following warning will show:
B289: It is worth noting that the official definitions of textures have very precise breaks for sand. silt, and clay. For instance, sandy clay loam starts at 20% clay and ends at 34.99 % clay. At 19.99% clay, the texture is sandy loam. At 35% clay, the texture is sandy clay. Since these distinctions are minute (1/100th) and this program operates in whole numbers only, they are recognized as mutual breaks. In other words a point at 20% clay is shared between sandy loam and sandy clay loam and it will allow a representative texture of either. However, it is recommended not to place representative textures and their corresponding sand, silt, and clay RVs on texture breaks.
B297: If you select textures on the triangle, but then rule them out using the sand, silt, and clay limits, the texture will not be included in the list of other textures. The example below shows sandy clay has been selected, but the clay high limit is set at 35%. This effectively rules out this texture. While 35% is technically sandy clay, only the edge of it is included in the range. Therefore, it is not included in the list of other textures. If the clay high limit is set to 36%, sandy clay would be included in the list of other textures.
B341: If you want to calculate the particle-size control section sand, silt, and clay values, you must populate the control section low and high depths. These should be entered in centimeters. You must also Copy/Paste Special (values) from the Soil Name row after it is finished to the section located on the lower half of the application. When the horizons that make up the control section are in place, the control section values will appear at the bottom. Scrolling down, the actual calculations can be viewed. In the Madison example below, the control section sand, silt, and clay values are the same as the Bt horizon values since the control section is entirely made up of this horizon.
B387: When finished working on a horizon, use the Clear button in the lower right corner to start a new horizon. This will delete everything except the soil name and the control section depths. When starting a new soil, these can be deleted manually. The section where individual horizons can be pasted also does not clear. These too can be manually deleted.
B392: The Saved Data tab is a place where you can store records for future reference. There is no reload function for this application. These would need to be re-entered manually if a second look or change was necessary.
B395: If this application does not fit your screen, you can resize it using the zoom tool.
B398: Please send comments or suggestions to
B399: mark.vanlear@va.usda.gov

Sheet Saved Data
A1: Soil Name / Map Unit / ID | B1: Horizon | C1: Depth (cm) | E1: Rep Texture | F1: Other Textures | G1: Percent Sand | J1: Percent Silt | M1: Percent Clay
C2: Low | D2: High | G2: Low | H2: RV | I2: High | J2: Low | K2: RV | L2: High | M2: Low | N2: RV | O2: High
A3: Madison | B3: Ap | C3: 0 | D3: 15 | E3: SL | F3: L, FSL | G3: 30 | H3: 55 | I3: 70 | J3: 10 | K3: 30 | L3: 50 | M3: 5 | N3: 15 | O3: 20
A4: Madison | B4: BE | C4: 15 | D4: 23 | E4: SCL | F4: L, SL | G4: 23 | H4: 55 | I4: 70 | J4: 3 | K4: 22 | L4: 50 | M4: 5 | N4: 23 | O4: 27
A5: Madison | B5: Bt | C5: 23 | D5: 76 | E5: C | F5: CL, SC, SCL | G5: 15 | H5: 35 | I5: 60 | J5: 5 | K5: 20 | L5: 40 | M5: 30 | N5: 45 | O5: 50
A6: Madison | B6: BC | C6: 76 | D6: 89 | E6: SCL | F6: CL, L, SL | G6: 25 | H6: 55 | I6: 70 | J6: 5 | K6: 15 | L6: 50 | M6: 15 | N6: 30 | O6: 35
A7: Madison | B7: C | C7: 89 | D7: 168 | E7: SL | F7: L, SCL | G7: 33 | H7: 70 | I7: 82 | J7: 5 | K7: 15 | L7: 40 | M7: 7 | N7: 15 | O7: 27

Sheet ChartData (hidden)
A1: Triangle outline | D1: 10/10 Points | H1: 10/10 Clay Lines | K1: 10/10 Silt Lines | N1: 10/10 Sand Lines | Q1: 10/10 Clay Ticks | T1: 10/10 Silt Ticks | W1: 10/10 Sand Ticks | Z1: 20/20 Clay Lines | AC1: 20/20 Silt Lines | AF1: 20/20 Sand Lines | AI1: 20/20 Clay Ticks | AL1: 20/20 Silt Ticks | AO1: 20/20 Sand Ticks | AR1: 100/100 Points | AU1: Sand | AX1: Sandy Clay | BA1: Very Fine | BD1: Tick Labels | BF1: Texture Labels | BJ1: Family | BM1: Sand Textures | BP1: Sand Lables
A2: x | B2: y | D2: H | E2: X | F2: Y | H2: X | I2: Y | K2: X | L2: Y | N2: X | O2: Y | Q2: X | R2: Y | T2: X | U2: Y | W2: X | X2: Y | Z2: X | AA2: Y | AC2: X | AD2: Y | AF2: X | AG2: Y | AI2: X | AJ2: Y | AL2: X | AM2: Y | AO2: X | AP2: Y | AR2: X | AS2: Y | AU2: X | AV2: Y | AX2: X | AY2: Y | BA2: X | BB2: Y | BD2: 0 | BF2: X | BG2: Y | BH2: Label | BJ2: X | BK2: Y | BM2: X | BN2: Y | BP2: COS
A3: 0.5 | B3: 0.8660254038 | D3: 0 | E3: 0 | F3: 0 | H3: 0 | I3: 0 | K3: 0 | L3: 0 | N3: 1 | O3: 0 | Q3: 0 | R3: 0 | T3: 0.5 | U3: 0.8660254038 | W3: 1 | X3: 0 | Z3: 0 | AA3: 0 | AC3: 0 | AD3: 0 | AF3: 1 | AG3: 0 | AI3: 0 | AJ3: 0 | AL3: 0.5 | AM3: 0.8660254038 | AO3: 1 | AP3: 0 | AR3: 0 | AS3: 0 | AU3: 0.05 | AV3: 0.08660254038 | AX3: 0.275 | AY3: 0.4763139721 | BA3: 0.5 | BB3: 0.8660254038 | BD3: 5 | BF3: =(AU48+AU51)/2 -> 0.4875 | BG3: =(AV47+AV50)/2 -> 0.6062177826 | BH3: Clay | BJ3: 0.7 | BK3: 0.5196152423 | BM3: -0.08 | BN3: 0.6 | BP3: S
A4: 0 | B4: 0 | D4: 0 | E4: 0.1 | F4: 0 | H4: 1 | I4: 0 | K4: 0.5 | L4: 0.8660254038 | N4: 0.5 | O4: 0.8660254038 | Q4: -0.03 | R4: 0 | T4: =T3+0.015 -> 0.515 | U4: =U3+0.02598 -> 0.8920054038 | W4: =W3+0.015 -> 1.015 | X4: =X3-0.02598 -> -0.02598 | Z4: 1 | AA4: 0 | AC4: 0.5 | AD4: 0.8660254038 | AF4: 0.5 | AG4: 0.8660254038 | AI4: -0.03 | AJ4: 0 | AL4: 0.515 | AM4: 0.8920054038 | AO4: 1.015 | AP4: -0.02598 | AR4: 0.01 | AS4: 0 | AU4: 0.15 | AV4: 0 | AX4: 0.375 | AY4: 0.3031088913 | BA4: 0.7 | BB4: 0.5196152423 | BD4: 10 | BF4: =(AX4+AX5)/2 -> 0.275 | BG4: =(AY3+AY5)/2 -> 0.3897114317 | BH4: Sandy Clay | BJ4: 0.3 | BK4: 0.5196152423 | BM4: -0.02 | BN4: 0.6 | BP4: FS
A5: 1 | B5: 0 | D5: 0 | E5: 0.2 | F5: 0 | AR5: 0.02 | AS5: 0 | AU5: 0 | AV5: 0 | AX5: 0.175 | AY5: 0.3031088913 | BA5: 0.3 | BB5: 0.5196152423 | BD5: 15 | BF5: =(AX19+AX20)/2 -> 0.7 | BG5: =(AY18+AY20)/2 -> 0.4330127019 | BH5: Silty Clay | BM5: -0.02 | BN5: 0.575 | BP5: VFS
A6: 0.5 | B6: 0.8660254038 | D6: 0 | E6: 0.3 | F6: 0 | H6: 0.05 | I6: 0.08660254038 | K6: 0.1 | L6: 0 | N6: 0.9 | O6: 0 | Q6: 0.05 | R6: 0.08660254038 | T6: 0.55 | U6: 0.7794228634 | W6: 0.9 | X6: 0 | Z6: 0.025 | AA6: 0.04330127019 | AC6: 0.05 | AD6: 0 | AF6: 0.95 | AG6: 0 | AI6: 0.025 | AJ6: 0.04330127019 | AL6: 0.525 | AM6: 0.8227241336 | AO6: 0.95 | AP6: 0 | AR6: 0.03 | AS6: 0 | AU6: 0.05 | AV6: 0.08660254038 | AX6: 0.275 | AY6: 0.4763139721 | BA6: 0.5 | BB6: 0.8660254038 | BD6: 20 | BF6: =(AX12+AX14)/2 -> 0.5075 | BG6: =(AY10+AY13)/2 -> 0.2901185103 | BH6: Clay Loam | BJ6: 0.825 | BK6: 0.3031088913 | BM6: -0.08 | BN6: 0.575 | BP6: LCOS
D7: 0 | E7: 0.4 | F7: 0 | H7: 0.95 | I7: 0.08660254038 | K7: 0.55 | L7: 0.7794228634 | N7: 0.45 | O7: 0.7794228634 | Q7: 0.02 | R7: 0.08660254038 | T7: =T6+0.015 -> 0.565 | U7: =U6+0.02598 -> 0.8054028634 | W7: =W6+0.015 -> 0.915 | X7: =X6-0.02598 -> -0.02598 | Z7: 0.975 | AA7: 0.04330127019 | AC7: 0.525 | AD7: 0.8227241336 | AF7: 0.475 | AG7: 0.8227241336 | AI7: -0.005 | AJ7: 0.04330127019 | AL7: 0.54 | AM7: 0.8487041336 | AO7: 0.965 | AP7: -0.02598 | AR7: 0.04 | AS7: 0 | BD7: 25 | BF7: =(AU33+AU31)/2 -> 0.2575 | BG7: =(AV29+AV33)/2 -> 0.238156986 | BH7: Sandy Clay Loam | BJ7: 0.175 | BK7: 0.3031088913 | BM7: -0.08 | BN7: 0.6 | BP7: LS
D8: 0 | E8: 0.5 | F8: 0 | AR8: 0.05 | AS8: 0 | AU8: Loamy Sand | AX8: Clay Loam | BA8: Fine | BD8: 30 | BF8: =(AX25+AX27)/2 -> 0.7325 | BG8: =(AY25+AY28)/2 -> 0.2901185103 | BH8: Silty Clay Loam | BP8: LFS
D9: 0 | E9: 0.6 | F9: 0 | H9: 0.1 | I9: 0.1732050808 | K9: 0.2 | L9: 0 | N9: 0.8 | O9: 0 | Q9: 0.1 | R9: 0.1732050808 | T9: 0.6 | U9: 0.692820323 | W9: 0.8 | X9: 0 | Z9: 0.05 | AA9: 0.08660254038 | AC9: 0.1 | AD9: 0 | AF9: 0.9 | AG9: 0 | AI9: 0.05 | AJ9: 0.08660254038 | AL9: 0.55 | AM9: 0.7794228634 | AO9: 0.9 | AP9: 0 | AR9: 0.06 | AS9: 0 | AU9: X | AV9: Y | AX9: X | AY9: Y | BA9: X | BB9: Y | BD9: 35 | BF9: =(AU39+AU42)/2 -> 0.5075 | BG9: =(AV38+AV41)/2 -> 0.1472243186 | BH9: Loam | BJ9: 0.09 | BK9: 0.1558845727 | BM9: 0 | BN9: 0.6 | BP9: LVFS
D10: 0 | E10: 0.7 | F10: 0 | H10: 0.9 | I10: 0.1732050808 | K10: 0.6 | L10: 0.692820323 | N10: 0.4 | O10: 0.692820323 | Q10: 0.07 | R10: 0.1732050808 | T10: =T9+0.015 -> 0.615 | U10: =U9+0.02598 -> 0.718800323 | W10: =W9+0.015 -> 0.815 | X10: =X9-0.02598 -> -0.02598 | Z10: 0.95 | AA10: 0.08660254038 | AC10: 0.55 | AD10: 0.7794228634 | AF10: 0.45 | AG10: 0.7794228634 | AI10: 0.02 | AJ10: 0.08660254038 | AL10: 0.565 | AM10: 0.8054028634 | AO10: 0.915 | AP10: -0.02598 | AR10: 0.07 | AS10: 0 | AU10: 0.075 | AV10: 0.1299038106 | AX10: 0.35 | AY10: 0.3464101615 | BA10: 0.3 | BB10: 0.5196152423 | BD10: 40 | BF10: =(AU21+AU24)/2 -> 0.305 | BG10: =(AV18+AV22)/2 -> 0.08660254038 | BH10: Sandy Loam | BJ10: 0.91 | BK10: 0.1558845727 | BM10: 0.06 | BN10: 0.6 | BP10: COSL
D11: 0 | E11: 0.8 | F11: 0 | AR11: 0.08 | AS11: 0 | AU11: 0.3 | AV11: 0 | AX11: 0.6 | AY11: 0.3464101615 | BA11: 0.7 | BB11: 0.5196152423 | BD11: 45 | BF11: =(AX35+AX38)/2 -> 0.72 | BG11: =(AY33+AY38)/2 -> 0.1169134295 | BH11: Silt Loam | BM11: 0.06 | BN11: 0.575 | BP11: SL
D12: 0 | E12: 0.9 | F12: 0 | H12: 0.15 | I12: 0.2598076211 | K12: 0.3 | L12: 0 | N12: 0.7 | O12: 0 | Q12: 0.15 | R12: 0.2598076211 | T12: 0.65 | U12: 0.6062177826 | W12: 0.7 | X12: 0 | Z12: 0.075 | AA12: 0.1299038106 | AC12: 0.15 | AD12: 0 | AF12: 0.85 | AG12: 0 | AI12: 0.075 | AJ12: 0.1299038106 | AL12: 0.575 | AM12: 0.7361215932 | AO12: 0.85 | AP12: 0 | AR12: 0.09 | AS12: 0 | AU12: 0.15 | AV12: 0 | AX12: 0.665 | AY12: 0.233826859 | BA12: 0.825 | BB12: 0.3031088913 | BD12: 50 | BF12: =(AU11+AU13)/2 -> 0.175 | BG12: =(AV10+AV12)/2 -> 0.06495190528 | BH12: Loamy Sand | BJ12: 0.675 | BK12: 0.3031088913 | BM12: 0 | BN12: 0.575 | BP12: FSL
D13: 0 | E13: 1 | F13: 0 | H13: 0.85 | I13: 0.2598076211 | K13: 0.65 | L13: 0.6062177826 | N13: 0.35 | O13: 0.6062177826 | Q13: 0.12 | R13: 0.2598076211 | T13: =T12+0.015 -> 0.665 | U13: =U12+0.02598 -> 0.6321977826 | W13: =W12+0.015 -> 0.715 | X13: =X12-0.02598 -> -0.02598 | Z13: 0.925 | AA13: 0.1299038106 | AC13: 0.575 | AD13: 0.7361215932 | AF13: 0.425 | AG13: 0.7361215932 | AI13: 0.045 | AJ13: 0.1299038106 | AL13: 0.59 | AM13: 0.7621015932 | AO13: 0.865 | AP13: -0.02598 | AR13: 0.1 | AS13: 0 | AU13: 0.05 | AV13: 0.08660254038 | AX13: 0.415 | AY13: 0.233826859 | BA13: 0.175 | BB13: 0.3031088913 | BD13: 55 | BF13: =(AU4+AU5)/2 -> 0.075 | BG13: =(AV3+AV5)/2 -> 0.04330127019 | BH13: Sand | BJ13: 0.85 | BK13: 0 | BM13: 0 | BN13: 0.6 | BP13: VFSL
AR14: 0.11 | AS14: 0 | AU14: 0.075 | AV14: 0.1299038106 | AX14: 0.35 | AY14: 0.3464101615 | BA14: 0.3 | BB14: 0.5196152423 | BD14: 60 | BF14: =(AX45+AX46)/2 -> 0.9 | BG14: =(AY43+AY46)/2 -> 0.05196152423 | BH14: Silt
D15: 0.1 | E15: 0.05 | F15: 0.08660254038 | H15: 0.2 | I15: 0.3464101615 | K15: 0.4 | L15: 0 | N15: 0.6 | O15: 0 | Q15: 0.2 | R15: 0.3464101615 | T15: 0.7 | U15: 0.5196152423 | W15: 0.6 | X15: 0 | Z15: 0.1 | AA15: 0.1732050808 | AC15: 0.2 | AD15: 0 | AF15: 0.8 | AG15: 0 | AI15: 0.1 | AJ15: 0.1732050808 | AL15: 0.6 | AM15: 0.692820323 | AO15: 0.8 | AP15: 0 | AR15: 0.12 | AS15: 0 | BD15: 65 | BJ15: 0.075 | BK15: 0.1299038106 | BM15: 0.08 | BN15: 0.6
D16: 0.1 | E16: 0.15 | F16: 0.08660254038 | H16: 0.8 | I16: 0.3464101615 | K16: 0.7 | L16: 0.5196152423 | N16: 0.3 | O16: 0.5196152423 | Q16: 0.17 | R16: 0.3464101615 | T16: =T15+0.015 -> 0.715 | U16: =U15+0.02598 -> 0.5455952423 | W16: =W15+0.015 -> 0.615 | X16: =X15-0.02598 -> -0.02598 | Z16: 0.9 | AA16: 0.1732050808 | AC16: 0.6 | AD16: 0.692820323 | AF16: 0.4 | AG16: 0.692820323 | AI16: 0.07 | AJ16: 0.1732050808 | AL16: 0.615 | AM16: 0.718800323 | AO16: 0.815 | AP16: -0.02598 | AR16: 0.13 | AS16: 0 | AU16: Sandy Loam | AX16: Silty Clay | BA16: Fine Silty | BD16: 70 | BJ16: 0.3 | BK16: 0 | BM16: 0.14 | BN16: 0.6
D17: 0.1 | E17: 0.25 | F17: 0.08660254038 | AR17: 0.14 | AS17: 0 | AU17: X | AV17: Y | AX17: X | AY17: Y | BA17: X | BB17: Y | BD17: 75 | BM17: 0.14 | BN17: 0.575
D18: 0.1 | E18: 0.35 | F18: 0.08660254038 | H18: 0.25 | I18: 0.4330127019 | K18: 0.5 | L18: 0 | N18: 0.5 | O18: 0 | Q18: 0.25 | R18: 0.4330127019 | T18: 0.75 | U18: 0.4330127019 | W18: 0.5 | X18: 0 | Z18: 0.125 | AA18: 0.2165063509 | AC18: 0.25 | AD18: 0 | AF18: 0.75 | AG18: 0 | AI18: 0.125 | AJ18: 0.2165063509 | AL18: 0.625 | AM18: 0.6495190528 | AO18: 0.75 | AP18: 0 | AR18: 0.15 | AS18: 0 | AU18: 0.1 | AV18: 0.1732050808 | AX18: 0.7 | AY18: 0.5196152423 | BA18: 0.675 | BB18: 0.3031088913 | BD18: 80 | BM18: 0.08 | BN18: 0.575
D19: 0.1 | E19: 0.45 | F19: 0.08660254038 | H19: 0.75 | I19: 0.4330127019 | K19: 0.75 | L19: 0.4330127019 | N19: 0.25 | O19: 0.4330127019 | Q19: 0.22 | R19: 0.4330127019 | T19: =T18+0.015 -> 0.765 | U19: =U18+0.02598 -> 0.4589927019 | W19: =W18+0.015 -> 0.515 | X19: =X18-0.02598 -> -0.02598 | Z19: 0.875 | AA19: 0.2165063509 | AC19: 0.625 | AD19: 0.6495190528 | AF19: 0.375 | AG19: 0.6495190528 | AI19: 0.095 | AJ19: 0.2165063509 | AL19: 0.64 | AM19: 0.6754990528 | AO19: 0.765 | AP19: -0.02598 | AR19: 0.16 | AS19: 0 | AU19: 0.38 | AV19: 0.1732050808 | AX19: 0.8 | AY19: 0.3464101615 | BA19: 0.825 | BB19: 0.3031088913 | BD19: 85 | BM19: 0.08 | BN19: 0.6
D20: 0.1 | E20: 0.55 | F20: 0.08660254038 | AR20: 0.17 | AS20: 0 | AU20: 0.445 | AV20: 0.06062177826 | AX20: 0.6 | AY20: 0.3464101615 | BA20: 0.91 | BB20: 0.1558845727 | BD20: 90
D21: 0.1 | E21: 0.65 | F21: 0.08660254038 | H21: 0.3 | I21: 0.5196152423 | K21: 0.6 | L21: 0 | N21: 0.4 | O21: 0 | Q21: 0.3 | R21: 0.5196152423 | T21: 0.8 | U21: 0.3464101615 | W21: 0.4 | X21: 0 | Z21: 0.15 | AA21: 0.2598076211 | AC21: 0.3 | AD21: 0 | AF21: 0.7 | AG21: 0 | AI21: 0.15 | AJ21: 0.2598076211 | AL21: 0.65 | AM21: 0.6062177826 | AO21: 0.7 | AP21: 0 | AR21: 0.18 | AS21: 0 | AU21: 0.535 | AV21: 0.06062177826 | AX21: 0.7 | AY21: 0.5196152423 | BA21: 0.76 | BB21: 0.1558845727 | BD21: 95 | BM21: 0.16 | BN21: 0.6
D22: 0.1 | E22: 0.75 | F22: 0.08660254038 | H22: 0.7 | I22: 0.5196152423 | K22: 0.8 | L22: 0.3464101615 | N22: 0.2 | O22: 0.3464101615 | Q22: 0.27 | R22: 0.5196152423 | T22: =T21+0.015 -> 0.815 | U22: =U21+0.02598 -> 0.3723901615 | W22: =W21+0.015 -> 0.415 | X22: =X21-0.02598 -> -0.02598 | Z22: 0.85 | AA22: 0.2598076211 | AC22: 0.65 | AD22: 0.6062177826 | AF22: 0.35 | AG22: 0.6062177826 | AI22: 0.12 | AJ22: 0.2598076211 | AL22: 0.665 | AM22: 0.6321977826 | AO22: 0.715 | AP22: -0.02598 | AR22: 0.19 | AS22: 0 | AU22: 0.5 | AV22: 0 | BA22: 0.675 | BB22: 0.3031088913 | BD22: 100 | BM22: 0.22 | BN22: 0.6
D23: 0.1 | E23: 0.85 | F23: 0.08660254038 | AR23: 0.2 | AS23: 0 | AU23: 0.3 | AV23: 0 | AX23: Silty Clay Loam | BM23: 0.22 | BN23: 0.575
D24: 0.1 | E24: 0.95 | F24: 0.08660254038 | H24: 0.35 | I24: 0.6062177826 | K24: 0.7 | L24: 0 | N24: 0.3 | O24: 0 | Q24: 0.35 | R24: 0.6062177826 | T24: 0.85 | U24: 0.2598076211 | W24: 0.3 | X24: 0 | Z24: 0.175 | AA24: 0.3031088913 | AC24: 0.35 | AD24: 0 | AF24: 0.65 | AG24: 0 | AI24: 0.175 | AJ24: 0.3031088913 | AL24: 0.675 | AM24: 0.5629165125 | AO24: 0.65 | AP24: 0 | AR24: 0.21 | AS24: 0 | AU24: 0.075 | AV24: 0.1299038106 | AX24: X | AY24: Y | BA24: Coarse Silty | BM24: 0.16 | BN24: 0.575
H25: 0.65 | I25: 0.6062177826 | K25: 0.85 | L25: 0.2598076211 | N25: 0.15 | O25: 0.2598076211 | Q25: 0.32 | R25: 0.6062177826 | T25: =T24+0.015 -> 0.865 | U25: =U24+0.02598 -> 0.2857876211 | W25: =W24+0.015 -> 0.315 | X25: =X24-0.02598 -> -0.02598 | Z25: 0.825 | AA25: 0.3031088913 | AC25: 0.675 | AD25: 0.5629165125 | AF25: 0.325 | AG25: 0.5629165125 | AI25: 0.145 | AJ25: 0.3031088913 | AL25: 0.69 | AM25: 0.5888965125 | AO25: 0.665 | AP25: -0.02598 | AR25: 0.22 | AS25: 0 | AU25: 0.1 | AV25: 0.1732050808 | AX25: 0.6 | AY25: 0.3464101615 | BA25: X | BB25: Y | BM25: 0.16 | BN25: 0.6
D26: 0.2 | E26: 0.1 | F26: 0.1732050808 | AR26: 0.23 | AS26: 0 | AX26: 0.8 | AY26: 0.3464101615 | BA26: 0.76 | BB26: 0.1558845727
D27: 0.2 | E27: 0.2 | F27: 0.1732050808 | H27: 0.4 | I27: 0.692820323 | K27: 0.8 | L27: 0 | N27: 0.2 | O27: 0 | Q27: 0.4 | R27: 0.692820323 | T27: 0.9 | U27: 0.1732050808 | W27: 0.2 | X27: 0 | Z27: 0.2 | AA27: 0.3464101615 | AC27: 0.4 | AD27: 0 | AF27: 0.6 | AG27: 0 | AI27: 0.2 | AJ27: 0.3464101615 | AL27: 0.7 | AM27: 0.5196152423 | AO27: 0.6 | AP27: 0 | AR27: 0.24 | AS27: 0 | AU27: Sandy Clay Loam | AX27: 0.865 | AY27: 0.233826859 | BA27: 0.91 | BB27: 0.1558845727 | BM27: -0.08 | BN27: 0.55
D28: 0.2 | E28: 0.3 | F28: 0.1732050808 | H28: 0.6 | I28: 0.692820323 | K28: 0.9 | L28: 0.1732050808 | N28: 0.1 | O28: 0.1732050808 | Q28: 0.37 | R28: 0.692820323 | T28: =T27+0.015 -> 0.915 | U28: =U27+0.02598 -> 0.1991850808 | W28: =W27+0.015 -> 0.215 | X28: =X27-0.02598 -> -0.02598 | Z28: 0.8 | AA28: 0.3464101615 | AC28: 0.7 | AD28: 0.5196152423 | AF28: 0.3 | AG28: 0.5196152423 | AI28: 0.17 | AJ28: 0.3464101615 | AL28: 0.715 | AM28: 0.5455952423 | AO28: 0.615 | AP28: -0.02598 | AR28: 0.25 | AS28: 0 | AU28: X | AV28: Y | AX28: 0.665 | AY28: 0.233826859 | BA28: 1 | BB28: 0 | BM28: -0.02 | BN28: 0.55
D29: 0.2 | E29: 0.4 | F29: 0.1732050808 | AR29: 0.26 | AS29: 0 | AU29: 0.175 | AV29: 0.3031088913 | AX29: 0.6 | AY29: 0.3464101615 | BA29: 0.85 | BB29: 0 | BM29: -0.02 | BN29: 0.525
D30: 0.2 | E30: 0.5 | F30: 0.1732050808 | H30: 0.45 | I30: 0.7794228634 | K30: 0.9 | L30: 0 | N30: 0.1 | O30: 0 | Q30: 0.45 | R30: 0.7794228634 | T30: 0.95 | U30: 0.08660254038 | W30: 0.1 | X30: 0 | Z30: 0.225 | AA30: 0.3897114317 | AC30: 0.45 | AD30: 0 | AF30: 0.55 | AG30: 0 | AI30: 0.225 | AJ30: 0.3897114317 | AL30: 0.725 | AM30: 0.4763139721 | AO30: 0.55 | AP30: 0 | AR30: 0.27 | AS30: 0 | AU30: 0.375 | AV30: 0.3031088913 | BA30: 0.76 | BB30: 0.1558845727 | BM30: -0.08 | BN30: 0.525
D31: 0.2 | E31: 0.6 | F31: 0.1732050808 | H31: 0.55 | I31: 0.7794228634 | K31: 0.95 | L31: 0.08660254038 | N31: 0.05 | O31: 0.08660254038 | Q31: 0.42 | R31: 0.7794228634 | T31: =T30+0.015 -> 0.965 | U31: =U30+0.02598 -> 0.1125825404 | W31: =W30+0.015 -> 0.115 | X31: =X30-0.02598 -> -0.02598 | Z31: 0.775 | AA31: 0.3897114317 | AC31: 0.725 | AD31: 0.4763139721 | AF31: 0.275 | AG31: 0.4763139721 | AI31: 0.195 | AJ31: 0.3897114317 | AL31: 0.74 | AM31: 0.5022939721 | AO31: 0.565 | AP31: -0.02598 | AR31: 0.28 | AS31: 0 | AU31: 0.415 | AV31: 0.233826859 | AX31: Silt Loam | BM31: -0.08 | BN31: 0.55
D32: 0.2 | E32: 0.7 | F32: 0.1732050808 | AR32: 0.29 | AS32: 0 | AU32: 0.38 | AV32: 0.1732050808 | AX32: X | AY32: Y | BA32: Fine Loamy
D33: 0.2 | E33: 0.8 | F33: 0.1732050808 | H33: 0.5 | I33: 0.8660254038 | K33: 1 | L33: 0 | N33: 0 | O33: 0 | Q33: 0.5 | R33: 0.8660254038 | T33: 1 | U33: 0 | W33: 0 | X33: 0 | Z33: 0.25 | AA33: 0.4330127019 | AC33: 0.5 | AD33: 0 | AF33: 0.5 | AG33: 0 | AI33: 0.25 | AJ33: 0.4330127019 | AL33: 0.75 | AM33: 0.4330127019 | AO33: 0.5 | AP33: 0 | AR33: 0.3 | AS33: 0 | AU33: 0.1 | AV33: 0.1732050808 | AX33: 0.635 | AY33: 0.233826859 | BA33: X | BB33: Y | BM33: 0 | BN33: 0.55
D34: 0.2 | E34: 0.9 | F34: 0.1732050808 | Q34: 0.47 | R34: 0.8660254038 | T34: =T33+0.015 -> 1.015 | U34: =U33+0.02598 -> 0.02598 | W34: =W33+0.015 -> 0.015 | X34: =X33-0.02598 -> -0.02598 | Z34: 0.75 | AA34: 0.4330127019 | AC34: 0.75 | AD34: 0.4330127019 | AF34: 0.25 | AG34: 0.4330127019 | AI34: 0.22 | AJ34: 0.4330127019 | AL34: 0.765 | AM34: 0.4589927019 | AO34: 0.515 | AP34: -0.02598 | AR34: 0.31 | AS34: 0 | AU34: 0.175 | AV34: 0.3031088913 | AX34: 0.865 | AY34: 0.233826859 | BA34: 0.175 | BB34: 0.3031088913 | BM34: 0.06 | BN34: 0.55
AR35: 0.32 | AS35: 0 | AX35: 0.94 | AY35: 0.1039230485 | BA35: 0.675 | BB35: 0.3031088913 | BM35: 0.06 | BN35: 0.525
D36: 0.3 | E36: 0.15 | F36: 0.2598076211 | Z36: 0.275 | AA36: 0.4763139721 | AC36: 0.55 | AD36: 0 | AF36: 0.45 | AG36: 0 | AI36: 0.275 | AJ36: 0.4763139721 | AL36: 0.775 | AM36: 0.3897114317 | AO36: 0.45 | AP36: 0 | AR36: 0.33 | AS36: 0 | AU36: Loam | AX36: 0.86 | AY36: 0.1039230485 | BA36: 0.76 | BB36: 0.1558845727 | BM36: 0 | BN36: 0.525
D37: 0.3 | E37: 0.25 | F37: 0.2598076211 | Z37: 0.725 | AA37: 0.4763139721 | AC37: 0.775 | AD37: 0.3897114317 | AF37: 0.225 | AG37: 0.3897114317 | AI37: 0.245 | AJ37: 0.4763139721 | AL37: 0.79 | AM37: 0.4156914317 | AO37: 0.465 | AP37: -0.02598 | AR37: 0.34 | AS37: 0 | AU37: X | AV37: Y | AX37: 0.8 | AY37: 0 | BA37: 0.09 | BB37: 0.1558845727 | BM37: 0 | BN37: 0.55
D38: 0.3 | E38: 0.35 | F38: 0.2598076211 | AR38: 0.35 | AS38: 0 | AU38: 0.415 | AV38: 0.233826859 | AX38: 0.5 | AY38: 0 | BA38: 0.175 | BB38: 0.3031088913
D39: 0.3 | E39: 0.45 | F39: 0.2598076211 | Z39: 0.3 | AA39: 0.5196152423 | AC39: 0.6 | AD39: 0 | AF39: 0.4 | AG39: 0 | AI39: 0.3 | AJ39: 0.5196152423 | AL39: 0.8 | AM39: 0.3464101615 | AO39: 0.4 | AP39: 0 | AR39: 0.36 | AS39: 0 | AU39: 0.635 | AV39: 0.233826859 | AX39: 0.635 | AY39: 0.233826859 | BM39: 0.08 | BN39: 0.55
D40: 0.3 | E40: 0.55 | F40: 0.2598076211 | Z40: 0.7 | AA40: 0.5196152423 | AC40: 0.8 | AD40: 0.3464101615 | AF40: 0.2 | AG40: 0.3464101615 | AI40: 0.27 | AJ40: 0.5196152423 | AL40: 0.815 | AM40: 0.3723901615 | AO40: 0.415 | AP40: -0.02598 | AR40: 0.37 | AS40: 0 | AU40: 0.535 | AV40: 0.06062177826 | BA40: Coarse Loamy | BM40: 0.14 | BN40: 0.55
D41: 0.3 | E41: 0.65 | F41: 0.2598076211 | AR41: 0.38 | AS41: 0 | AU41: 0.445 | AV41: 0.06062177826 | AX41: Silt | BA41: X | BB41: Y | BM41: 0.14 | BN41: 0.525
D42: 0.3 | E42: 0.75 | F42: 0.2598076211 | Z42: 0.325 | AA42: 0.5629165125 | AC42: 0.65 | AD42: 0 | AF42: 0.35 | AG42: 0 | AI42: 0.325 | AJ42: 0.5629165125 | AL42: 0.825 | AM42: 0.3031088913 | AO42: 0.35 | AP42: 0 | AR42: 0.39 | AS42: 0 | AU42: 0.38 | AV42: 0.1732050808 | AX42: X | AY42: Y | BA42: 0.09 | BB42: 0.1558845727 | BM42: 0.08 | BN42: 0.525
D43: 0.3 | E43: 0.85 | F43: 0.2598076211 | Z43: 0.675 | AA43: 0.5629165125 | AC43: 0.825 | AD43: 0.3031088913 | AF43: 0.175 | AG43: 0.3031088913 | AI43: 0.295 | AJ43: 0.5629165125 | AL43: 0.84 | AM43: 0.3290888913 | AO43: 0.365 | AP43: -0.02598 | AR43: 0.4 | AS43: 0 | AU43: 0.415 | AV43: 0.233826859 | AX43: 0.86 | AY43: 0.1039230485 | BA43: 0.76 | BB43: 0.1558845727 | BM43: 0.08 | BN43: 0.55
AR44: 0.41 | AS44: 0 | AX44: 0.94 | AY44: 0.1039230485 | BA44: 0.85 | BB44: 0
D45: 0.4 | E45: 0.2 | F45: 0.3464101615 | Z45: 0.35 | AA45: 0.6062177826 | AC45: 0.7 | AD45: 0 | AF45: 0.3 | AG45: 0 | AI45: 0.35 | AJ45: 0.6062177826 | AL45: 0.85 | AM45: 0.2598076211 | AO45: 0.3 | AP45: 0 | AR45: 0.42 | AS45: 0 | AU45: Clay | AX45: 1 | AY45: 0 | BA45: 0.3 | BB45: 0 | BM45: 0.16 | BN45: 0.55
D46: 0.4 | E46: 0.3 | F46: 0.3464101615 | Z46: 0.65 | AA46: 0.6062177826 | AC46: 0.85 | AD46: 0.2598076211 | AF46: 0.15 | AG46: 0.2598076211 | AI46: 0.32 | AJ46: 0.6062177826 | AL46: 0.865 | AM46: 0.2857876211 | AO46: 0.315 | AP46: -0.02598 | AR46: 0.43 | AS46: 0 | AU46: X | AV46: Y | AX46: 0.8 | AY46: 0 | BA46: 0.075 | BB46: 0.1299038106 | BM46: 0.22 | BN46: 0.55
D47: 0.4 | E47: 0.4 | F47: 0.3464101615 | AR47: 0.44 | AS47: 0 | AU47: 0.5 | AV47: 0.8660254038 | AX47: 0.86 | AY47: 0.1039230485 | BA47: 0.09 | BB47: 0.1558845727 | BM47: 0.22 | BN47: 0.525
D48: 0.4 | E48: 0.5 | F48: 0.3464101615 | Z48: 0.375 | AA48: 0.6495190528 | AC48: 0.75 | AD48: 0 | AF48: 0.25 | AG48: 0 | AI48: 0.375 | AJ48: 0.6495190528 | AL48: 0.875 | AM48: 0.2165063509 | AO48: 0.25 | AP48: 0 | AR48: 0.45 | AS48: 0 | AU48: 0.7 | AV48: 0.5196152423 | BM48: 0.16 | BN48: 0.525
D49: 0.4 | E49: 0.6 | F49: 0.3464101615 | Z49: 0.625 | AA49: 0.6495190528 | AC49: 0.875 | AD49: 0.2165063509 | AF49: 0.125 | AG49: 0.2165063509 | AI49: 0.345 | AJ49: 0.6495190528 | AL49: 0.89 | AM49: 0.2424863509 | AO49: 0.265 | AP49: -0.02598 | AR49: 0.46 | AS49: 0 | AU49: 0.6 | AV49: 0.3464101615 | BA49: Sandy | BM49: 0.16 | BN49: 0.55
D50: 0.4 | E50: 0.7 | F50: 0.3464101615 | AR50: 0.47 | AS50: 0 | AU50: 0.35 | AV50: 0.3464101615 | BA50: X | BB50: Y
D51: 0.4 | E51: 0.8 | F51: 0.3464101615 | Z51: 0.4 | AA51: 0.692820323 | AC51: 0.8 | AD51: 0 | AF51: 0.2 | AG51: 0 | AI51: 0.4 | AJ51: 0.692820323 | AL51: 0.9 | AM51: 0.1732050808 | AO51: 0.2 | AP51: 0 | AR51: 0.48 | AS51: 0 | AU51: 0.275 | AV51: 0.4763139721 | BA51: 0.075 | BB51: 0.1299038106 | BM51: -0.08 | BN51: 0.5
Z52: 0.6 | AA52: 0.692820323 | AC52: 0.9 | AD52: 0.1732050808 | AF52: 0.1 | AG52: 0.1732050808 | AI52: 0.37 | AJ52: 0.692820323 | AL52: 0.915 | AM52: 0.1991850808 | AO52: 0.215 | AP52: -0.02598 | AR52: 0.49 | AS52: 0 | AU52: 0.5 | AV52: 0.8660254038 | BA52: 0.3 | BB52: 0 | BM52: -0.02 | BN52: 0.5
D53: 0.5 | E53: 0.25 | F53: 0.4330127019 | AR53: 0.5 | AS53: 0 | BA53: 0 | BB53: 0 | BM53: -0.02 | BN53: 0.475
D54: 0.5 | E54: 0.35 | F54: 0.4330127019 | Z54: 0.425 | AA54: 0.7361215932 | AC54: 0.85 | AD54: 0 | AF54: 0.15 | AG54: 0 | AI54: 0.425 | AJ54: 0.7361215932 | AL54: 0.925 | AM54: 0.1299038106 | AO54: 0.15 | AP54: 0 | AR54: 0.51 | AS54: 0 | BA54: 0.075 | BB54: 0.1299038106 | BM54: -0.08 | BN54: 0.475
D55: 0.5 | E55: 0.45 | F55: 0.4330127019 | Z55: 0.575 | AA55: 0.7361215932 | AC55: 0.925 | AD55: 0.1299038106 | AF55: 0.075 | AG55: 0.1299038106 | AI55: 0.395 | AJ55: 0.7361215932 | AL55: 0.94 | AM55: 0.1558838106 | AO55: 0.165 | AP55: -0.02598 | AR55: 0.52 | AS55: 0 | BM55: -0.08 | BN55: 0.5
D56: 0.5 | E56: 0.55 | F56: 0.4330127019 | AR56: 0.53 | AS56: 0
D57: 0.5 | E57: 0.65 | F57: 0.4330127019 | Z57: 0.45 | AA57: 0.7794228634 | AC57: 0.9 | AD57: 0 | AF57: 0.1 | AG57: 0 | AI57: 0.45 | AJ57: 0.7794228634 | AL57: 0.95 | AM57: 0.08660254038 | AO57: 0.1 | AP57: 0 | AR57: 0.54 | AS57: 0 | BM57: 0 | BN57: 0.5
D58: 0.5 | E58: 0.75 | F58: 0.4330127019 | Z58: 0.55 | AA58: 0.7794228634 | AC58: 0.95 | AD58: 0.08660254038 | AF58: 0.05 | AG58: 0.08660254038 | AI58: 0.42 | AJ58: 0.7794228634 | AL58: 0.965 | AM58: 0.1125825404 | AO58: 0.115 | AP58: -0.02598 | AR58: 0.55 | AS58: 0 | BM58: 0.06 | BN58: 0.5
AR59: 0.56 | AS59: 0 | BM59: 0.06 | BN59: 0.475
D60: 0.6 | E60: 0.3 | F60: 0.5196152423 | Z60: 0.475 | AA60: 0.8227241336 | AC60: 0.95 | AD60: 0 | AF60: 0.05 | AG60: 0 | AI60: 0.475 | AJ60: 0.8227241336 | AL60: 0.975 | AM60: 0.04330127019 | AO60: 0.05 | AP60: 0 | AR60: 0.57 | AS60: 0 | BM60: 0 | BN60: 0.475
D61: 0.6 | E61: 0.4 | F61: 0.5196152423 | Z61: 0.525 | AA61: 0.8227241336 | AC61: 0.975 | AD61: 0.04330127019 | AF61: 0.025 | AG61: 0.04330127019 | AI61: 0.445 | AJ61: 0.8227241336 | AL61: 0.99 | AM61: 0.06928127019 | AO61: 0.065 | AP61: -0.02598 | AR61: 0.58 | AS61: 0 | BM61: 0 | BN61: 0.5
D62: 0.6 | E62: 0.5 | F62: 0.5196152423 | AR62: 0.59 | AS62: 0
D63: 0.6 | E63: 0.6 | F63: 0.5196152423 | Z63: 0.5 | AA63: 0.8660254038 | AC63: 1 | AD63: 0 | AF63: 0 | AG63: 0 | AI63: 0.5 | AJ63: 0.8660254038 | AL63: 1 | AM63: 0 | AO63: 0 | AP63: 0 | AR63: 0.6 | AS63: 0 | BM63: 0.08 | BN63: 0.5
D64: 0.6 | E64: 0.7 | F64: 0.5196152423 | AI64: 0.47 | AJ64: 0.8660254038 | AL64: 1.015 | AM64: 0.02598 | AO64: 0.015 | AP64: -0.02598 | AR64: 0.61 | AS64: 0 | BM64: 0.14 | BN64: 0.5
AR65: 0.62 | AS65: 0 | BM65: 0.14 | BN65: 0.475
D66: 0.7 | E66: 0.35 | F66: 0.6062177826 | AR66: 0.63 | AS66: 0 | BM66: 0.08 | BN66: 0.475
D67: 0.7 | E67: 0.45 | F67: 0.6062177826 | AR67: 0.64 | AS67: 0 | BM67: 0.08 | BN67: 0.5
D68: 0.7 | E68: 0.55 | F68: 0.6062177826 | AR68: 0.65 | AS68: 0
D69: 0.7 | E69: 0.65 | F69: 0.6062177826 | AR69: 0.66 | AS69: 0 | BM69: 0.16 | BN69: 0.5
AR70: 0.67 | AS70: 0 | BM70: 0.22 | BN70: 0.5
D71: 0.8 | E71: 0.4 | F71: 0.692820323 | AR71: 0.68 | AS71: 0 | BM71: 0.22 | BN71: 0.475
D72: 0.8 | E72: 0.5 | F72: 0.692820323 | AR72: 0.69 | AS72: 0 | BM72: 0.16 | BN72: 0.475
D73: 0.8 | E73: 0.6 | F73: 0.692820323 | AR73: 0.7 | AS73: 0 | BM73: 0.16 | BN73: 0.5
AR74: 0.71 | AS74: 0
D75: 0.9 | E75: 0.45 | F75: 0.7794228634 | AR75: 0.72 | AS75: 0
D76: 0.9 | E76: 0.55 | F76: 0.7794228634 | AR76: 0.73 | AS76: 0
AR77: 0.74 | AS77: 0
D78: 1 | E78: 0.5 | F78: 0.8660254038 | AR78: 0.75 | AS78: 0
AR79: 0.76 | AS79: 0
AR80: 0.77 | AS80: 0
AR81: 0.78 | AS81: 0
AR82: 0.79 | AS82: 0
AR83: 0.8 | AS83: 0
AR84: 0.81 | AS84: 0
AR85: 0.82 | AS85: 0
AR86: 0.83 | AS86: 0
AR87: 0.84 | AS87: 0
AR88: 0.85 | AS88: 0
AR89: 0.86 | AS89: 0
AR90: 0.87 | AS90: 0
AR91: 0.88 | AS91: 0
AR92: 0.89 | AS92: 0
AR93: 0.9 | AS93: 0
AR94: 0.91 | AS94: 0
AR95: 0.92 | AS95: 0
AR96: 0.93 | AS96: 0
AR97: 0.94 | AS97: 0
AR98: 0.95 | AS98: 0
AR99: 0.96 | AS99: 0
AR100: 0.97 | AS100: 0
AR101: 0.98 | AS101: 0
AR102: 0.99 | AS102: 0
AR103: 1 | AS103: 0
AR105: 0.005 | AS105: 0.008660254038
AR106: 0.015 | AS106: 0.008660254038
AR107: 0.025 | AS107: 0.008660254038
AR108: 0.035 | AS108: 0.008660254038
AR109: 0.045 | AS109: 0.008660254038
AR110: 0.055 | AS110: 0.008660254038
AR111: 0.065 | AS111: 0.008660254038
AR112: 0.075 | AS112: 0.008660254038
AR113: 0.085 | AS113: 0.008660254038
AR114: 0.095 | AS114: 0.008660254038
AR115: 0.105 | AS115: 0.008660254038
AR116: 0.115 | AS116: 0.008660254038
AR117: 0.125 | AS117: 0.008660254038
AR118: 0.135 | AS118: 0.008660254038
AR119: 0.145 | AS119: 0.008660254038
AR120: 0.155 | AS120: 0.008660254038
AR121: 0.165 | AS121: 0.008660254038
AR122: 0.175 | AS122: 0.008660254038
AR123: 0.185 | AS123: 0.008660254038
AR124: 0.195 | AS124: 0.008660254038
AR125: 0.205 | AS125: 0.008660254038
AR126: 0.215 | AS126: 0.008660254038
AR127: 0.225 | AS127: 0.008660254038
AR128: 0.235 | AS128: 0.008660254038
AR129: 0.245 | AS129: 0.008660254038
AR130: 0.255 | AS130: 0.008660254038
AR131: 0.265 | AS131: 0.008660254038
AR132: 0.275 | AS132: 0.008660254038
AR133: 0.285 | AS133: 0.008660254038
AR134: 0.295 | AS134: 0.008660254038
AR135: 0.305 | AS135: 0.008660254038
AR136: 0.315 | AS136: 0.008660254038
AR137: 0.325 | AS137: 0.008660254038
AR138: 0.335 | AS138: 0.008660254038
AR139: 0.345 | AS139: 0.008660254038
AR140: 0.355 | AS140: 0.008660254038
AR141: 0.365 | AS141: 0.008660254038
AR142: 0.375 | AS142: 0.008660254038
AR143: 0.385 | AS143: 0.008660254038
AR144: 0.395 | AS144: 0.008660254038
AR145: 0.405 | AS145: 0.008660254038
AR146: 0.415 | AS146: 0.008660254038
AR147: 0.425 | AS147: 0.008660254038
AR148: 0.435 | AS148: 0.008660254038
AR149: 0.445 | AS149: 0.008660254038
AR150: 0.455 | AS150: 0.008660254038
AR151: 0.465 | AS151: 0.008660254038
AR152: 0.475 | AS152: 0.008660254038
AR153: 0.485 | AS153: 0.008660254038
AR154: 0.495 | AS154: 0.008660254038
AR155: 0.505 | AS155: 0.008660254038
AR156: 0.515 | AS156: 0.008660254038
AR157: 0.525 | AS157: 0.008660254038
AR158: 0.535 | AS158: 0.008660254038
AR159: 0.545 | AS159: 0.008660254038
AR160: 0.555 | AS160: 0.008660254038
AR161: 0.565 | AS161: 0.008660254038
AR162: 0.575 | AS162: 0.008660254038
AR163: 0.585 | AS163: 0.008660254038
AR164: 0.595 | AS164: 0.008660254038
AR165: 0.605 | AS165: 0.008660254038
AR166: 0.615 | AS166: 0.008660254038
AR167: 0.625 | AS167: 0.008660254038
AR168: 0.635 | AS168: 0.008660254038
AR169: 0.645 | AS169: 0.008660254038
AR170: 0.655 | AS170: 0.008660254038
AR171: 0.665 | AS171: 0.008660254038
AR172: 0.675 | AS172: 0.008660254038
AR173: 0.685 | AS173: 0.008660254038
AR174: 0.695 | AS174: 0.008660254038
AR175: 0.705 | AS175: 0.008660254038
AR176: 0.715 | AS176: 0.008660254038
AR177: 0.725 | AS177: 0.008660254038
AR178: 0.735 | AS178: 0.008660254038
AR179: 0.745 | AS179: 0.008660254038
AR180: 0.755 | AS180: 0.008660254038
AR181: 0.765 | AS181: 0.008660254038
AR182: 0.775 | AS182: 0.008660254038
AR183: 0.785 | AS183: 0.008660254038
AR184: 0.795 | AS184: 0.008660254038
AR185: 0.805 | AS185: 0.008660254038
AR186: 0.815 | AS186: 0.008660254038
AR187: 0.825 | AS187: 0.008660254038
AR188: 0.835 | AS188: 0.008660254038
AR189: 0.845 | AS189: 0.008660254038
AR190: 0.855 | AS190: 0.008660254038
AR191: 0.865 | AS191: 0.008660254038
AR192: 0.875 | AS192: 0.008660254038
AR193: 0.885 | AS193: 0.008660254038
AR194: 0.895 | AS194: 0.008660254038
AR195: 0.905 | AS195: 0.008660254038
AR196: 0.915 | AS196: 0.008660254038
AR197: 0.925 | AS197: 0.008660254038
AR198: 0.935 | AS198: 0.008660254038
AR199: 0.945 | AS199: 0.008660254038
AR200: 0.955 | AS200: 0.008660254038
AR201: 0.965 | AS201: 0.008660254038
... 898 more rows

Sheet ShapeData (hidden)
B2: Shape Data
E4: Maximum | F4: =MAX(textureshapes1[Vertical]) -> 0.8660254038 | L4: Scale | M4: 383
E5: Minimum | F5: =MIN(textureshapes1[Vertical]) -> 0 | G5: =MIN(textureshapes1[Horizontal]) -> -0.08 | L5: Left Offset | M5: 10
L6: Top Offset | M6: 75
B8: Code | C8: Item | D8: Polygon ID | E8: Point Order | F8: Vertical | G8: Horizontal | H8: Percent Clay | I8: Percent Sand | J8: Percent Silt | K8: ID | L8: Y | M8: X
B9: S_1 | C9: Sand_1 | D9: 1 | E9: 1 | F9: 0.08660254038 | G9: 0.05 | H9: 10 | I9: 90 | J9: 0 | K9: Sand_1 | L9: =$M$6+$M$4*($F$4-F9) -> 373.5189567 | M9: =$M$5+$M$4*(G9-$G$5) -> 59.79
B10: S_1 | C10: Sand_1 | D10: 1 | E10: 2 | F10: 0 | G10: 0.15 | H10: 0 | I10: 85 | J10: 15 | K10: Sand_1 | L10: 406.6877296 | M10: 98.09
B11: S_1 | C11: Sand_1 | D11: 1 | E11: 3 | F11: 0 | G11: 0 | H11: 0 | I11: 100 | J11: 0 | K11: Sand_1 | L11: 406.6877296 | M11: 40.64
B12: S_1 | C12: Sand_1 | D12: 1 | E12: 4 | F12: 0.08660254038 | G12: 0.05 | H12: 10 | I12: 90 | J12: 0 | K12: Sand_1 | L12: 373.5189567 | M12: 59.79
B13: LS_1 | C13: Loamy_Sand_1 | D13: 2 | E13: 1 | F13: 0.1299038106 | G13: 0.075 | H13: 15 | I13: 85 | J13: 0 | K13: Loamy_Sand_1 | L13: 356.9345702 | M13: 69.365
B14: LS_1 | C14: Loamy_Sand_1 | D14: 2 | E14: 2 | F14: 0 | G14: 0.3 | H14: 0 | I14: 70 | J14: 30 | K14: Loamy_Sand_1 | L14: 406.6877296 | M14: 155.54
B15: LS_1 | C15: Loamy_Sand_1 | D15: 2 | E15: 3 | F15: 0 | G15: 0.15 | H15: 0 | I15: 85 | J15: 15 | K15: Loamy_Sand_1 | L15: 406.6877296 | M15: 98.09
B16: LS_1 | C16: Loamy_Sand_1 | D16: 2 | E16: 4 | F16: 0.08660254038 | G16: 0.05 | H16: 10 | I16: 90 | J16: 0 | K16: Loamy_Sand_1 | L16: 373.5189567 | M16: 59.79
B17: LS_1 | C17: Loamy_Sand_1 | D17: 2 | E17: 5 | F17: 0.1299038106 | G17: 0.075 | H17: 15 | I17: 85 | J17: 0 | K17: Loamy_Sand_1 | L17: 356.9345702 | M17: 69.365
B18: SL_1 | C18: Sandy_Loam_1 | D18: 3 | E18: 1 | F18: 0.1732050808 | G18: 0.1 | H18: 20 | I18: 80 | J18: 0 | K18: Sandy_Loam_1 | L18: 340.3501837 | M18: 78.94
B19: SL_1 | C19: Sandy_Loam_1 | D19: 3 | E19: 2 | F19: 0.1732050808 | G19: 0.38 | H19: 20 | I19: 52 | J19: 28 | K19: Sandy_Loam_1 | L19: 340.3501837 | M19: 186.18
B20: SL_1 | C20: Sandy_Loam_1 | D20: 3 | E20: 3 | F20: 0.06062177826 | G20: 0.445 | H20: 7 | I20: 52 | J20: 41 | K20: Sandy_Loam_1 | L20: 383.4695886 | M20: 211.075
B21: SL_1 | C21: Sandy_Loam_1 | D21: 3 | E21: 4 | F21: 0.06062177826 | G21: 0.535 | H21: 7 | I21: 43 | J21: 50 | K21: Sandy_Loam_1 | L21: 383.4695886 | M21: 245.545
B22: SL_1 | C22: Sandy_Loam_1 | D22: 3 | E22: 5 | F22: 0 | G22: 0.5 | H22: 0 | I22: 50 | J22: 50 | K22: Sandy_Loam_1 | L22: 406.6877296 | M22: 232.14
B23: SL_1 | C23: Sandy_Loam_1 | D23: 3 | E23: 6 | F23: 0 | G23: 0.3 | H23: 0 | I23: 70 | J23: 30 | K23: Sandy_Loam_1 | L23: 406.6877296 | M23: 155.54
B24: SL_1 | C24: Sandy_Loam_1 | D24: 3 | E24: 7 | F24: 0.1299038106 | G24: 0.075 | H24: 15 | I24: 85 | J24: 0 | K24: Sandy_Loam_1 | L24: 356.9345702 | M24: 69.365
B25: SL_1 | C25: Sandy_Loam_1 | D25: 3 | E25: 8 | F25: 0.1732050808 | G25: 0.1 | H25: 20 | I25: 80 | J25: 0 | K25: Sandy_Loam_1 | L25: 340.3501837 | M25: 78.94
B26: SCL_1 | C26: Sandy_Clay_Loam_1 | D26: 4 | E26: 1 | F26: 0.3031088913 | G26: 0.175 | H26: 35 | I26: 65 | J26: 0 | K26: Sandy_Clay_Loam_1 | L26: 290.5970243 | M26: 107.665
B27: SCL_1 | C27: Sandy_Clay_Loam_1 | D27: 4 | E27: 2 | F27: 0.3031088913 | G27: 0.375 | H27: 35 | I27: 45 | J27: 20 | K27: Sandy_Clay_Loam_1 | L27: 290.5970243 | M27: 184.265
B28: SCL_1 | C28: Sandy_Clay_Loam_1 | D28: 4 | E28: 3 | F28: 0.233826859 | G28: 0.415 | H28: 27 | I28: 45 | J28: 28 | K28: Sandy_Clay_Loam_1 | L28: 317.1320426 | M28: 199.585
B29: SCL_1 | C29: Sandy_Clay_Loam_1 | D29: 4 | E29: 4 | F29: 0.1732050808 | G29: 0.38 | H29: 20 | I29: 52 | J29: 28 | K29: Sandy_Clay_Loam_1 | L29: 340.3501837 | M29: 186.18
B30: SCL_1 | C30: Sandy_Clay_Loam_1 | D30: 4 | E30: 5 | F30: 0.1732050808 | G30: 0.1 | H30: 20 | I30: 80 | J30: 0 | K30: Sandy_Clay_Loam_1 | L30: 340.3501837 | M30: 78.94
B31: SCL_1 | C31: Sandy_Clay_Loam_1 | D31: 4 | E31: 6 | F31: 0.3031088913 | G31: 0.175 | H31: 35 | I31: 65 | J31: 0 | K31: Sandy_Clay_Loam_1 | L31: 290.5970243 | M31: 107.665
B32: L_1 | C32: Loam_1 | D32: 5 | E32: 1 | F32: 0.233826859 | G32: 0.415 | H32: 27 | I32: 45 | J32: 28 | K32: Loam_1 | L32: 317.1320426 | M32: 199.585
B33: L_1 | C33: Loam_1 | D33: 5 | E33: 2 | F33: 0.233826859 | G33: 0.635 | H33: 27 | I33: 23 | J33: 50 | K33: Loam_1 | L33: 317.1320426 | M33: 283.845
B34: L_1 | C34: Loam_1 | D34: 5 | E34: 3 | F34: 0.06062177826 | G34: 0.535 | H34: 7 | I34: 43 | J34: 50 | K34: Loam_1 | L34: 383.4695886 | M34: 245.545
B35: L_1 | C35: Loam_1 | D35: 5 | E35: 4 | F35: 0.06062177826 | G35: 0.445 | H35: 7 | I35: 52 | J35: 41 | K35: Loam_1 | L35: 383.4695886 | M35: 211.075
B36: L_1 | C36: Loam_1 | D36: 5 | E36: 5 | F36: 0.1732050808 | G36: 0.38 | H36: 20 | I36: 52 | J36: 28 | K36: Loam_1 | L36: 340.3501837 | M36: 186.18
B37: L_1 | C37: Loam_1 | D37: 5 | E37: 6 | F37: 0.233826859 | G37: 0.415 | H37: 27 | I37: 45 | J37: 28 | K37: Loam_1 | L37: 317.1320426 | M37: 199.585
B38: C_1 | C38: Clay_1 | D38: 6 | E38: 1 | F38: 0.8660254038 | G38: 0.5 | H38: 100 | I38: 0 | J38: 0 | K38: Clay_1 | L38: 75 | M38: 232.14
B39: C_1 | C39: Clay_1 | D39: 6 | E39: 2 | F39: 0.5196152423 | G39: 0.7 | H39: 60 | I39: 0 | J39: 40 | K39: Clay_1 | L39: 207.6750919 | M39: 308.74
B40: C_1 | C40: Clay_1 | D40: 6 | E40: 3 | F40: 0.3464101615 | G40: 0.6 | H40: 40 | I40: 20 | J40: 40 | K40: Clay_1 | L40: 274.0126378 | M40: 270.44
B41: C_1 | C41: Clay_1 | D41: 6 | E41: 4 | F41: 0.3464101615 | G41: 0.35 | H41: 40 | I41: 45 | J41: 15 | K41: Clay_1 | L41: =$M$6+$M$4*($F$4-F41) -> 274.0126378 | M41: =$M$5+$M$4*(G41-$G$5) -> 174.69
B42: C_1 | C42: Clay_1 | D42: 6 | E42: 5 | F42: 0.4763139721 | G42: 0.275 | H42: 55 | I42: 45 | J42: 0 | K42: Clay_1 | L42: 224.2594783 | M42: 145.965
B43: C_1 | C43: Clay_1 | D43: 6 | E43: 6 | F43: 0.8660254038 | G43: 0.5 | H43: 100 | I43: 0 | J43: 0 | K43: Clay_1 | L43: 75 | M43: 232.14
B44: SC_1 | C44: Sandy_Clay_1 | D44: 7 | E44: 1 | F44: 0.4763139721 | G44: 0.275 | H44: 55 | I44: 45 | J44: 0 | K44: Sandy_Clay_1 | L44: 224.2594783 | M44: 145.965
B45: SC_1 | C45: Sandy_Clay_1 | D45: 7 | E45: 2 | F45: 0.3031088913 | G45: 0.375 | H45: 35 | I45: 45 | J45: 20 | K45: Sandy_Clay_1 | L45: 290.5970243 | M45: 184.265
B46: SC_1 | C46: Sandy_Clay_1 | D46: 7 | E46: 3 | F46: 0.3031088913 | G46: 0.175 | H46: 35 | I46: 65 | J46: 0 | K46: Sandy_Clay_1 | L46: 290.5970243 | M46: 107.665
B47: SC_1 | C47: Sandy_Clay_1 | D47: 7 | E47: 4 | F47: 0.4763139721 | G47: 0.275 | H47: 55 | I47: 45 | J47: 0 | K47: Sandy_Clay_1 | L47: 224.2594783 | M47: 145.965
B48: CL_1 | C48: Clay_Loam_1 | D48: 8 | E48: 1 | F48: 0.3464101615 | G48: 0.35 | H48: 40 | I48: 45 | J48: 15 | K48: Clay_Loam_1 | L48: 274.0126378 | M48: 174.69
B49: CL_1 | C49: Clay_Loam_1 | D49: 8 | E49: 2 | F49: 0.3464101615 | G49: 0.6 | H49: 40 | I49: 20 | J49: 40 | K49: Clay_Loam_1 | L49: 274.0126378 | M49: 270.44
B50: CL_1 | C50: Clay_Loam_1 | D50: 8 | E50: 3 | F50: 0.233826859 | G50: 0.665 | H50: 27 | I50: 20 | J50: 53 | K50: Clay_Loam_1 | L50: 317.1320426 | M50: 295.335
B51: CL_1 | C51: Clay_Loam_1 | D51: 8 | E51: 4 | F51: 0.233826859 | G51: 0.415 | H51: 27 | I51: 45 | J51: 28 | K51: Clay_Loam_1 | L51: 317.1320426 | M51: 199.585
B52: CL_1 | C52: Clay_Loam_1 | D52: 8 | E52: 5 | F52: 0.3464101615 | G52: 0.35 | H52: 40 | I52: 45 | J52: 15 | K52: Clay_Loam_1 | L52: 274.0126378 | M52: 174.69
B53: SIC_1 | C53: Silty_Clay_1 | D53: 9 | E53: 1 | F53: 0.5196152423 | G53: 0.7 | H53: 60 | I53: 0 | J53: 40 | K53: Silty_Clay_1 | L53: 207.6750919 | M53: 308.74
B54: SIC_1 | C54: Silty_Clay_1 | D54: 9 | E54: 2 | F54: 0.3464101615 | G54: 0.8 | H54: 40 | I54: 0 | J54: 60 | K54: Silty_Clay_1 | L54: 274.0126378 | M54: 347.04
B55: SIC_1 | C55: Silty_Clay_1 | D55: 9 | E55: 3 | F55: 0.3464101615 | G55: 0.6 | H55: 40 | I55: 20 | J55: 40 | K55: Silty_Clay_1 | L55: 274.0126378 | M55: 270.44
B56: SIC_1 | C56: Silty_Clay_1 | D56: 9 | E56: 4 | F56: 0.5196152423 | G56: 0.7 | H56: 60 | I56: 0 | J56: 40 | K56: Silty_Clay_1 | L56: 207.6750919 | M56: 308.74
B57: SICL_1 | C57: Silty_Clay_Loam_1 | D57: 10 | E57: 1 | F57: 0.3464101615 | G57: 0.6 | H57: 40 | I57: 20 | J57: 40 | K57: Silty_Clay_Loam_1 | L57: 274.0126378 | M57: 270.44
B58: SICL_1 | C58: Silty_Clay_Loam_1 | D58: 10 | E58: 2 | F58: 0.3464101615 | G58: 0.8 | H58: 40 | I58: 0 | J58: 60 | K58: Silty_Clay_Loam_1 | L58: 274.0126378 | M58: 347.04
B59: SICL_1 | C59: Silty_Clay_Loam_1 | D59: 10 | E59: 3 | F59: 0.233826859 | G59: 0.865 | H59: 27 | I59: 0 | J59: 73 | K59: Silty_Clay_Loam_1 | L59: 317.1320426 | M59: 371.935
B60: SICL_1 | C60: Silty_Clay_Loam_1 | D60: 10 | E60: 4 | F60: 0.233826859 | G60: 0.665 | H60: 27 | I60: 20 | J60: 53 | K60: Silty_Clay_Loam_1 | L60: 317.1320426 | M60: 295.335
B61: SICL_1 | C61: Silty_Clay_Loam_1 | D61: 10 | E61: 5 | F61: 0.3464101615 | G61: 0.6 | H61: 40 | I61: 20 | J61: 40 | K61: Silty_Clay_Loam_1 | L61: 274.0126378 | M61: 270.44
B62: SIL_1 | C62: Silt_Loam_1 | D62: 11 | E62: 1 | F62: 0.233826859 | G62: 0.635 | H62: 27 | I62: 23 | J62: 50 | K62: Silt_Loam_1 | L62: 317.1320426 | M62: 283.845
B63: SIL_1 | C63: Silt_Loam_1 | D63: 11 | E63: 2 | F63: 0.233826859 | G63: 0.865 | H63: 27 | I63: 0 | J63: 73 | K63: Silt_Loam_1 | L63: 317.1320426 | M63: 371.935
B64: SIL_1 | C64: Silt_Loam_1 | D64: 11 | E64: 3 | F64: 0.1039230485 | G64: 0.94 | H64: 12 | I64: 0 | J64: 88 | K64: Silt_Loam_1 | L64: 366.8852021 | M64: 400.66
B65: SIL_1 | C65: Silt_Loam_1 | D65: 11 | E65: 4 | F65: 0.1039230485 | G65: 0.86 | H65: 12 | I65: 8 | J65: 80 | K65: Silt_Loam_1 | L65: 366.8852021 | M65: 370.02
B66: SIL_1 | C66: Silt_Loam_1 | D66: 11 | E66: 5 | F66: 0 | G66: 0.8 | H66: 0 | I66: 20 | J66: 80 | K66: Silt_Loam_1 | L66: 406.6877296 | M66: 347.04
B67: SIL_1 | C67: Silt_Loam_1 | D67: 11 | E67: 6 | F67: 0 | G67: 0.5 | H67: 0 | I67: 50 | J67: 50 | K67: Silt_Loam_1 | L67: 406.6877296 | M67: 232.14
B68: SIL_1 | C68: Silt_Loam_1 | D68: 11 | E68: 7 | F68: 0.233826859 | G68: 0.635 | H68: 27 | I68: 23 | J68: 50 | K68: Silt_Loam_1 | L68: 317.1320426 | M68: 283.845
B69: SI_1 | C69: Silt_1 | D69: 12 | E69: 1 | F69: 0.1039230485 | G69: 0.86 | H69: 12 | I69: 8 | J69: 80 | K69: Silt_1 | L69: 366.8852021 | M69: 370.02
B70: SI_1 | C70: Silt_1 | D70: 12 | E70: 2 | F70: 0.1039230485 | G70: 0.94 | H70: 12 | I70: 0 | J70: 88 | K70: Silt_1 | L70: 366.8852021 | M70: 400.66
B71: SI_1 | C71: Silt_1 | D71: 12 | E71: 3 | F71: 0 | G71: 1 | H71: 0 | I71: 0 | J71: 100 | K71: Silt_1 | L71: 406.6877296 | M71: 423.64
B72: SI_1 | C72: Silt_1 | D72: 12 | E72: 4 | F72: 0 | G72: 0.8 | H72: 0 | I72: 20 | J72: 80 | K72: Silt_1 | L72: 406.6877296 | M72: 347.04
B73: SI_1 | C73: Silt_1 | D73: 12 | E73: 5 | F73: 0.1039230485 | G73: 0.86 | H73: 12 | I73: 8 | J73: 80 | K73: Silt_1 | L73: 366.8852021 | M73: 370.02
B74: S_COS_1 | C74: Sand_COS_1 | D74: 13 | E74: 1 | F74: 0.6 | G74: -0.08 | K74: Sand_COS_1 | L74: =$M$6+$M$4*($F$4-F74) -> 176.8877296 | M74: =$M$5+$M$4*(G74-$G$5) -> 10
B75: S_COS_1 | C75: Sand_COS_1 | D75: 13 | E75: 2 | F75: 0.6 | G75: -0.02 | K75: Sand_COS_1 | L75: 176.8877296 | M75: 32.98
B76: S_COS_1 | C76: Sand_COS_1 | D76: 13 | E76: 3 | F76: 0.575 | G76: -0.02 | K76: Sand_COS_1 | L76: 186.4627296 | M76: 32.98
B77: S_COS_1 | C77: Sand_COS_1 | D77: 13 | E77: 4 | F77: 0.575 | G77: -0.08 | K77: Sand_COS_1 | L77: 186.4627296 | M77: 10
B78: S_COS_1 | C78: Sand_COS_1 | D78: 13 | E78: 5 | F78: 0.6 | G78: -0.08 | K78: Sand_COS_1 | L78: 176.8877296 | M78: 10
B79: S_S_1 | C79: Sand_S_1 | D79: 14 | E79: 1 | F79: 0.6 | G79: 0 | K79: Sand_S_1 | L79: 176.8877296 | M79: 40.64
B80: S_S_1 | C80: Sand_S_1 | D80: 14 | E80: 2 | F80: 0.6 | G80: 0.06 | K80: Sand_S_1 | L80: 176.8877296 | M80: 63.62
B81: S_S_1 | C81: Sand_S_1 | D81: 14 | E81: 3 | F81: 0.575 | G81: 0.06 | K81: Sand_S_1 | L81: 186.4627296 | M81: 63.62
B82: S_S_1 | C82: Sand_S_1 | D82: 14 | E82: 4 | F82: 0.575 | G82: 0 | K82: Sand_S_1 | L82: 186.4627296 | M82: 40.64
B83: S_S_1 | C83: Sand_S_1 | D83: 14 | E83: 5 | F83: 0.6 | G83: 0 | K83: Sand_S_1 | L83: 176.8877296 | M83: 40.64
B84: S_FS_1 | C84: Sand_FS_1 | D84: 15 | E84: 1 | F84: 0.6 | G84: 0.08 | K84: Sand_FS_1 | L84: 176.8877296 | M84: 71.28
B85: S_FS_1 | C85: Sand_FS_1 | D85: 15 | E85: 2 | F85: 0.6 | G85: 0.14 | K85: Sand_FS_1 | L85: 176.8877296 | M85: 94.26
B86: S_FS_1 | C86: Sand_FS_1 | D86: 15 | E86: 3 | F86: 0.575 | G86: 0.14 | K86: Sand_FS_1 | L86: =$M$6+$M$4*($F$4-F86) -> 186.4627296 | M86: =$M$5+$M$4*(G86-$G$5) -> 94.26
B87: S_FS_1 | C87: Sand_FS_1 | D87: 15 | E87: 4 | F87: 0.575 | G87: 0.08 | K87: Sand_FS_1 | L87: 186.4627296 | M87: 71.28
B88: S_FS_1 | C88: Sand_FS_1 | D88: 15 | E88: 5 | F88: 0.6 | G88: 0.08 | K88: Sand_FS_1 | L88: 176.8877296 | M88: 71.28
B89: S_VFS_1 | C89: Sand_VFS_1 | D89: 16 | E89: 1 | F89: 0.6 | G89: 0.16 | K89: Sand_VFS_1 | L89: 176.8877296 | M89: 101.92
B90: S_VFS_1 | C90: Sand_VFS_1 | D90: 16 | E90: 2 | F90: 0.6 | G90: 0.22 | K90: Sand_VFS_1 | L90: 176.8877296 | M90: 124.9
B91: S_VFS_1 | C91: Sand_VFS_1 | D91: 16 | E91: 3 | F91: 0.575 | G91: 0.22 | K91: Sand_VFS_1 | L91: 186.4627296 | M91: 124.9
B92: S_VFS_1 | C92: Sand_VFS_1 | D92: 16 | E92: 4 | F92: 0.575 | G92: 0.16 | K92: Sand_VFS_1 | L92: 186.4627296 | M92: 101.92
B93: S_VFS_1 | C93: Sand_VFS_1 | D93: 16 | E93: 5 | F93: 0.6 | G93: 0.16 | K93: Sand_VFS_1 | L93: 176.8877296 | M93: 101.92
B94: LS_LCOS_1 | C94: Loamy_Sand_LCOS_1 | D94: 17 | E94: 1 | F94: 0.55 | G94: -0.08 | K94: Loamy_Sand_LCOS_1 | L94: 196.0377296 | M94: 10
B95: LS_LCOS_1 | C95: Loamy_Sand_LCOS_1 | D95: 17 | E95: 2 | F95: 0.55 | G95: -0.02 | K95: Loamy_Sand_LCOS_1 | L95: 196.0377296 | M95: 32.98
B96: LS_LCOS_1 | C96: Loamy_Sand_LCOS_1 | D96: 17 | E96: 3 | F96: 0.525 | G96: -0.02 | K96: Loamy_Sand_LCOS_1 | L96: 205.6127296 | M96: 32.98
B97: LS_LCOS_1 | C97: Loamy_Sand_LCOS_1 | D97: 17 | E97: 4 | F97: 0.525 | G97: -0.08 | K97: Loamy_Sand_LCOS_1 | L97: 205.6127296 | M97: 10
B98: LS_LCOS_1 | C98: Loamy_Sand_LCOS_1 | D98: 17 | E98: 5 | F98: 0.55 | G98: -0.08 | K98: Loamy_Sand_LCOS_1 | L98: 196.0377296 | M98: 10
B99: LS_LS_1 | C99: Loamy_Sand_LS_1 | D99: 18 | E99: 1 | F99: 0.55 | G99: 0 | K99: Loamy_Sand_LS_1 | L99: 196.0377296 | M99: 40.64
B100: LS_LS_1 | C100: Loamy_Sand_LS_1 | D100: 18 | E100: 2 | F100: 0.55 | G100: 0.06 | K100: Loamy_Sand_LS_1 | L100: 196.0377296 | M100: 63.62
B101: LS_LS_1 | C101: Loamy_Sand_LS_1 | D101: 18 | E101: 3 | F101: 0.525 | G101: 0.06 | K101: Loamy_Sand_LS_1 | L101: 205.6127296 | M101: 63.62
B102: LS_LS_1 | C102: Loamy_Sand_LS_1 | D102: 18 | E102: 4 | F102: 0.525 | G102: 0 | K102: Loamy_Sand_LS_1 | L102: 205.6127296 | M102: 40.64
B103: LS_LS_1 | C103: Loamy_Sand_LS_1 | D103: 18 | E103: 5 | F103: 0.55 | G103: 0 | K103: Loamy_Sand_LS_1 | L103: 196.0377296 | M103: 40.64
B104: LS_LFS_1 | C104: Loamy_Sand_LFS_1 | D104: 19 | E104: 1 | F104: 0.55 | G104: 0.08 | K104: Loamy_Sand_LFS_1 | L104: 196.0377296 | M104: 71.28
B105: LS_LFS_1 | C105: Loamy_Sand_LFS_1 | D105: 19 | E105: 2 | F105: 0.55 | G105: 0.14 | K105: Loamy_Sand_LFS_1 | L105: 196.0377296 | M105: 94.26
B106: LS_LFS_1 | C106: Loamy_Sand_LFS_1 | D106: 19 | E106: 3 | F106: 0.525 | G106: 0.14 | K106: Loamy_Sand_LFS_1 | L106: 205.6127296 | M106: 94.26
B107: LS_LFS_1 | C107: Loamy_Sand_LFS_1 | D107: 19 | E107: 4 | F107: 0.525 | G107: 0.08 | K107: Loamy_Sand_LFS_1 | L107: 205.6127296 | M107: 71.28
B108: LS_LFS_1 | C108: Loamy_Sand_LFS_1 | D108: 19 | E108: 5 | F108: 0.55 | G108: 0.08 | K108: Loamy_Sand_LFS_1 | L108: 196.0377296 | M108: 71.28
B109: LS_LVFS_1 | C109: Loamy_Sand_LVFS_1 | D109: 20 | E109: 1 | F109: 0.55 | G109: 0.16 | K109: Loamy_Sand_LVFS_1 | L109: 196.0377296 | M109: 101.92
B110: LS_LVFS_1 | C110: Loamy_Sand_LVFS_1 | D110: 20 | E110: 2 | F110: 0.55 | G110: 0.22 | K110: Loamy_Sand_LVFS_1 | L110: 196.0377296 | M110: 124.9
B111: LS_LVFS_1 | C111: Loamy_Sand_LVFS_1 | D111: 20 | E111: 3 | F111: 0.525 | G111: 0.22 | K111: Loamy_Sand_LVFS_1 | L111: 205.6127296 | M111: 124.9
B112: LS_LVFS_1 | C112: Loamy_Sand_LVFS_1 | D112: 20 | E112: 4 | F112: 0.525 | G112: 0.16 | K112: Loamy_Sand_LVFS_1 | L112: 205.6127296 | M112: 101.92
B113: LS_LVFS_1 | C113: Loamy_Sand_LVFS_1 | D113: 20 | E113: 5 | F113: 0.55 | G113: 0.16 | K113: Loamy_Sand_LVFS_1 | L113: 196.0377296 | M113: 101.92
B114: SL_COSL_1 | C114: Sandy_Loam_COSL_1 | D114: 21 | E114: 1 | F114: 0.5 | G114: -0.08 | K114: Sandy_Loam_COSL_1 | L114: 215.1877296 | M114: 10
B115: SL_COSL_1 | C115: Sandy_Loam_COSL_1 | D115: 21 | E115: 2 | F115: 0.5 | G115: -0.02 | K115: Sandy_Loam_COSL_1 | L115: 215.1877296 | M115: 32.98
B116: SL_COSL_1 | C116: Sandy_Loam_COSL_1 | D116: 21 | E116: 3 | F116: 0.475 | G116: -0.02 | K116: Sandy_Loam_COSL_1 | L116: 224.7627296 | M116: 32.98
B117: SL_COSL_1 | C117: Sandy_Loam_COSL_1 | D117: 21 | E117: 4 | F117: 0.475 | G117: -0.08 | K117: Sandy_Loam_COSL_1 | L117: 224.7627296 | M117: 10
B118: SL_COSL_1 | C118: Sandy_Loam_COSL_1 | D118: 21 | E118: 5 | F118: 0.5 | G118: -0.08 | K118: Sandy_Loam_COSL_1 | L118: 215.1877296 | M118: 10
B119: SL_SL_1 | C119: Sandy_Loam_SL_1 | D119: 22 | E119: 1 | F119: 0.5 | G119: 0 | K119: Sandy_Loam_SL_1 | L119: 215.1877296 | M119: 40.64
B120: SL_SL_1 | C120: Sandy_Loam_SL_1 | D120: 22 | E120: 2 | F120: 0.5 | G120: 0.06 | K120: Sandy_Loam_SL_1 | L120: =$M$6+$M$4*($F$4-F120) -> 215.1877296 | M120: =$M$5+$M$4*(G120-$G$5) -> 63.62
B121: SL_SL_1 | C121: Sandy_Loam_SL_1 | D121: 22 | E121: 3 | F121: 0.475 | G121: 0.06 | K121: Sandy_Loam_SL_1 | L121: 224.7627296 | M121: 63.62
B122: SL_SL_1 | C122: Sandy_Loam_SL_1 | D122: 22 | E122: 4 | F122: 0.475 | G122: 0 | K122: Sandy_Loam_SL_1 | L122: 224.7627296 | M122: 40.64
B123: SL_SL_1 | C123: Sandy_Loam_SL_1 | D123: 22 | E123: 5 | F123: 0.5 | G123: 0 | K123: Sandy_Loam_SL_1 | L123: 215.1877296 | M123: 40.64
B124: SL_FSL_1 | C124: Sandy_Loam_FSL_1 | D124: 23 | E124: 1 | F124: 0.5 | G124: 0.08 | K124: Sandy_Loam_FSL_1 | L124: 215.1877296 | M124: 71.28
B125: SL_FSL_1 | C125: Sandy_Loam_FSL_1 | D125: 23 | E125: 2 | F125: 0.5 | G125: 0.14 | K125: Sandy_Loam_FSL_1 | L125: 215.1877296 | M125: 94.26
B126: SL_FSL_1 | C126: Sandy_Loam_FSL_1 | D126: 23 | E126: 3 | F126: 0.475 | G126: 0.14 | K126: Sandy_Loam_FSL_1 | L126: 224.7627296 | M126: 94.26
B127: SL_FSL_1 | C127: Sandy_Loam_FSL_1 | D127: 23 | E127: 4 | F127: 0.475 | G127: 0.08 | K127: Sandy_Loam_FSL_1 | L127: 224.7627296 | M127: 71.28
B128: SL_FSL_1 | C128: Sandy_Loam_FSL_1 | D128: 23 | E128: 5 | F128: 0.5 | G128: 0.08 | K128: Sandy_Loam_FSL_1 | L128: 215.1877296 | M128: 71.28
B129: SL_VFSL_1 | C129: Sandy_Loam_VFSL_1 | D129: 24 | E129: 1 | F129: 0.5 | G129: 0.16 | K129: Sandy_Loam_VFSL_1 | L129: 215.1877296 | M129: 101.92
B130: SL_VFSL_1 | C130: Sandy_Loam_VFSL_1 | D130: 24 | E130: 2 | F130: 0.5 | G130: 0.22 | K130: Sandy_Loam_VFSL_1 | L130: 215.1877296 | M130: 124.9
B131: SL_VFSL_1 | C131: Sandy_Loam_VFSL_1 | D131: 24 | E131: 3 | F131: 0.475 | G131: 0.22 | K131: Sandy_Loam_VFSL_1 | L131: 224.7627296 | M131: 124.9
B132: SL_VFSL_1 | C132: Sandy_Loam_VFSL_1 | D132: 24 | E132: 4 | F132: 0.475 | G132: 0.16 | K132: Sandy_Loam_VFSL_1 | L132: 224.7627296 | M132: 101.92
B133: SL_VFSL_1 | C133: Sandy_Loam_VFSL_1 | D133: 24 | E133: 5 | F133: 0.5 | G133: 0.16 | K133: Sandy_Loam_VFSL_1 | L133: 215.1877296 | M133: 101.92

Sheet TextureData (hidden)
A1: Code | B1: Texture | C1: Switch | H1: Test1 | I1: Test2
A2: C | B2: Clay | C2: 0 | I2: =IF(AND(Triangle!$G$12=TextureData!A2,mySwitch_C_1=0),"This texture has not been selected","") -> 
A3: CL | B3: Clay Loam | C3: 0 | I3: =IF(AND(Triangle!$G$12=TextureData!A3,mySwitch_CL_1=0),"Error","") -> 
A4: L | B4: Loam | C4: 0 | I4: =IF(AND(Triangle!$G$12=TextureData!A4,mySwitch_L_1=0),"Error","") -> 
A5: LS_LS | B5: Loamy Sand | C5: 0
A6: S_S | B6: Sand | C6: 0
A7: SC | B7: Sandy Clay | C7: 0 | I7: =IF(AND(Triangle!$G$12=TextureData!A7,mySwitch_SC_1=0),"Error","") -> 
A8: SCL | B8: Sandy Clay Loam | C8: 0 | I8: =IF(AND(Triangle!$G$12=TextureData!A8,mySwitch_SCL_1=0),"Error","") -> 
A9: SI | B9: Silt | C9: 0 | I9: =IF(AND(Triangle!$G$12=TextureData!A9,mySwitch_SI_1=0),"Error","") -> 
A10: SIC | B10: Silty Clay | C10: 0 | I10: =IF(AND(Triangle!$G$12=TextureData!A10,mySwitch_SIC_1=0),"Error","") -> 
A11: SICL | B11: Silty Clay Loam | C11: 0 | I11: =IF(AND(Triangle!$G$12=TextureData!A11,mySwitch_SICL_1=0),"Error","") -> 
A12: SIL | B12: Silt Loam | C12: 0 | I12: =IF(AND(Triangle!$G$12=TextureData!A12,mySwitch_SIL_1=0),"Error","") -> 
A13: SL_SL | B13: Sandy Loam | C13: 0
A14: COS | B14: Coarse Sand | C14: 0 | H14: =IF(AND(C6=1,C14=0,C15=0,C16=0,C17=0),"Select COS, S, FS, or VFS (1 or more)",IF(AND(OR(C14=1,C15=1,C16=1,C17=1),C6=0),"Select Sand on the triangle","")) ->  | I14: =IF(AND(Triangle!$G$12=TextureData!A14,mySwitch_S_COS_1=0),"Error","") -> 
A15: S | B15: Sand | C15: 0 | I15: =IF(AND(Triangle!$G$12=TextureData!A15,mySwitch_S_S_1=0),"Error","") -> 
A16: FS | B16: Fine Sand | C16: 0 | I16: =IF(AND(Triangle!$G$12=TextureData!A16,mySwitch_S_FS_1=0),"Error","") -> 
A17: VFS | B17: Very Fine Sand | C17: 0 | I17: =IF(AND(Triangle!$G$12=TextureData!A17,mySwitch_S_VFS_1=0),"Error","") -> 
A18: LCOS | B18: Loamy Coarse Sand | C18: 0 | H18: =IF(AND(C5=1,C18=0,C19=0,C20=0,C21=0),"Select LCOS, LS, LFS, or LVFS (1 or more)",IF(AND(OR(C18=1,C19=1,C20=1,C21=1),C5=0),"Select Loamy Sand on the triangle","")) ->  | I18: =IF(AND(Triangle!$G$12=TextureData!A18,mySwitch_LS_LCOS_1=0),"Error","") -> 
A19: LS | B19: Loamy Sand | C19: 0 | I19: =IF(AND(Triangle!$G$12=TextureData!A19,mySwitch_LS_LS_1=0),"Error","") -> 
A20: LFS | B20: Loamy Fine Sand | C20: 0 | I20: =IF(AND(Triangle!$G$12=TextureData!A20,mySwitch_LS_LFS_1=0),"Error","") -> 
A21: LVFS | B21: Loamy Very Fine Sand | C21: 0 | I21: =IF(AND(Triangle!$G$12=TextureData!A21,mySwitch_LS_LVFS_1=0),"Error","") -> 
A22: COSL | B22: Coarse Sandy Loam | C22: 0 | H22: =IF(AND(C13=1,C22=0,C23=0,C24=0,C25=0),"Select COSL, SL, FSL, or VFSL (1 or more)",IF(AND(OR(C22=1,C23=1,C24=1,C25=1),C13=0),"Select Sandy Loam on the triangle","")) ->  | I22: =IF(AND(Triangle!$G$12=TextureData!A22,mySwitch_SL_COSL_1=0),"Error","") -> 
A23: SL | B23: Sandy Loam | C23: 0 | I23: =IF(AND(Triangle!$G$12=TextureData!A23,mySwitch_SL_SL_1=0),"Error","") -> 
A24: FSL | B24: Fine Sandy Loam | C24: 0 | I24: =IF(AND(Triangle!$G$12=TextureData!A24,mySwitch_SL_FSL_1=0),"Error","") -> 
A25: VFSL | B25: Very Fine Sandy Loam | C25: 0 | I25: =IF(AND(Triangle!$G$12=TextureData!A25,mySwitch_SL_VFSL_1=0),"Error","") -> 
I26: =COUNTIF(I2:I25,"*?") -> 0

Sheet Limits (hidden)
A1: 100/100 Points | H1: Texture Points | K1: Clay Low | L1: =IF(Triangle!E3="","",Triangle!E3) ->  | N1: Clay High | O1: =IF(Triangle!G3="","",Triangle!G3) ->  | Q1: Sand Low | R1: =IF(Triangle!E4="","",Triangle!E4) ->  | T1: Sand High | U1: =IF(Triangle!G4="","",Triangle!G4) ->  | W1: Silt Low | X1: =IF(Triangle!E5="","",Triangle!E5) ->  | Z1: Silt High | AA1: =IF(Triangle!G5="","",Triangle!G5) ->  | AC1: Limit Points | AF1: Combined Limits | AM1: Clay Texture Limits | AT1: Clay Loam Texture Limits | BA1: Loam Texture Limits | BH1: Loamy Coarse Sand Texture Limits | BO1: Loamy Sand Texture Limits | BV1: Loamy Fine Sand Texture Limits | CC1: Loamy Very Fine Sand Texture Limits | CJ1: Coarse Sand Texture Limits | CQ1: Sand Texture Limits | CX1: Fine Sand Texture Limits | DE1: Very Fine Sand Texture Limits | DL1: Sandy Clay Texture Limits | DS1: Sandy Clay Loam Texture Limits | DZ1: Silt Texture Limits | EG1: Silty Clay Texture Limits | EN1: Silty Clay Loam Texture Limits | EU1: Silt Loam Texture Limits | FB1: Coarse Sandy Loam Texture Limits | FI1: Sandy Loam Texture Limits | FP1: Fine Sandy Loam Texture Limits | FW1: Very Fine Sandy Loam Texture Limits | GD1: Combined Limits Plot
AA2: =IF(Triangle!G3="","",Triangle!G3) -> 
A3: Tex | B3: Clay | C3: Sand | D3: Silt | E3: Y | F3: X | H3: Y | I3: X | K3: Y | L3: X | N3: Y | O3: X | Q3: Y | R3: X | T3: Y | U3: X | W3: Y | X3: X | Z3: Y | AA3: X | AC3: Y | AD3: X | AF3: Tex | AG3: Clay | AH3: Sand | AI3: Silt | AJ3: Y | AK3: X | AM3: Tex | AN3: Clay | AO3: Sand | AP3: Silt | AQ3: Y | AR3: X | AT3: Tex | AU3: Clay | AV3: Sand | AW3: Silt | AX3: Y | AY3: X | BA3: Tex | BB3: Clay | BC3: Sand | BD3: Silt | BE3: Y | BF3: X | BH3: Tex | BI3: Clay | BJ3: Sand | BK3: Silt | BL3: Y | BM3: X | BO3: Tex | BP3: Clay | BQ3: Sand | BR3: Silt | BS3: Y | BT3: X | BV3: Tex | BW3: Clay | BX3: Sand | BY3: Silt | BZ3: Y | CA3: X | CC3: Tex | CD3: Clay | CE3: Sand | CF3: Silt | CG3: Y | CH3: X | CJ3: Tex | CK3: Clay | CL3: Sand | CM3: Silt | CN3: Y | CO3: X | CQ3: Tex | CR3: Clay | CS3: Sand | CT3: Silt | CU3: Y | CV3: X | CX3: Tex | CY3: Clay | CZ3: Sand | DA3: Silt | DB3: Y | DC3: X | DE3: Tex | DF3: Clay | DG3: Sand | DH3: Silt | DI3: Y | DJ3: X | DL3: Tex | DM3: Clay | DN3: Sand | DO3: Silt | DP3: Y | DQ3: X | DS3: Tex | DT3: Clay | DU3: Sand | DV3: Silt | DW3: Y | DX3: X | DZ3: Tex | EA3: Clay | EB3: Sand | EC3: Silt | ED3: Y | EE3: X | EG3: Tex | EH3: Clay | EI3: Sand | EJ3: Silt | EK3: Y | EL3: X | EN3: Tex | EO3: Clay | EP3: Sand | EQ3: Silt | ER3: Y | ES3: X | EU3: Tex | EV3: Clay | EW3: Sand | EX3: Silt | EY3: Y | EZ3: X | FB3: Tex | FC3: Clay | FD3: Sand | FE3: Silt | FF3: Y | FG3: X | FI3: Tex | FJ3: Clay | FK3: Sand | FL3: Silt | FM3: Y | FN3: X | FP3: Tex | FQ3: Clay | FR3: Sand | FS3: Silt | FT3: Y | FU3: X | FW3: Tex | FX3: Clay | FY3: Sand | FZ3: Silt | GA3: Y | GB3: X | GD3: Tex | GE3: Clay | GF3: Sand | GG3: Silt | GH3: Y | GI3: X
A4: C^ | B4: 40 | C4: 45 | D4: 15 | E4: 0.3464101615 | F4: 0.35 | H4: =IF(mySwitch_C_1=1,E4,"") ->  | I4: =IF(mySwitch_C_1=1,F4,"") ->  | K4: =IF(B4>=$L$1,H4,IF($L$1="",H4,"")) ->  | L4: =IF(B4>=$L$1,I4,IF($L$1="",I4,"")) ->  | N4: =IF(B4<=$O$1,H4,IF($O$1="",H4,"")) ->  | O4: =IF(B4<=$O$1,I4,IF($O$1="",I4,"")) ->  | Q4: =IF(C4>=$R$1,H4,IF($R$1="",H4,"")) ->  | R4: =IF(C4>=$R$1,I4,IF($R$1="",I4,"")) ->  | T4: =IF(C4<=$U$1,H4,IF($U$1="",H4,"")) ->  | U4: =IF(C4<=$U$1,I4,IF($U$1="",I4,"")) ->  | W4: =IF(D4>=$X$1,H4,IF($X$1="",H4,"")) ->  | X4: =IF(D4>=$X$1,I4,IF($X$1="",I4,"")) ->  | Z4: =IF(D4<=$AA$1,H4,IF($AA$1="",H4,"")) ->  | AA4: =IF(D4<=$AA$1,I4,IF($AA$1="",I4,"")) ->  | AC4: =IF((AND(K4<>"",N4<>"",Q4<>"",T4<>"",W4<>"",Z4<>"")),E4,"") ->  | AD4: =IF((AND(L4<>"",O4<>"",R4<>"",U4<>"",X4<>"",AA4<>"")),F4,"") ->  | AF4: =IF(AC4<>"",A4,"") ->  | AG4: =IF(AC4<>"",B4,"") ->  | AH4: =IF(AC4<>"",C4,"") ->  | AI4: =IF(AC4<>"",D4,"") ->  | AJ4: =IF(AC4<>"",E4,"") ->  | AK4: =IF(AC4<>"",F4,"") ->  | AM4: =IF(OR(AF4="C",AF4="C^"),AF4,"") ->  | AN4: =IF(OR(AF4="C",AF4="C^"),AG4,"") ->  | AO4: =IF(OR(AF4="C",AF4="C^"),AH4,"") ->  | AP4: =IF(OR(AF4="C",AF4="C^"),AI4,"") ->  | AQ4: =IF(OR(AF4="C",AF4="C^"),AJ4,"") ->  | AR4: =IF(OR(AF4="C",AF4="C^"),AK4,"") ->  | GD4: =IF(AND(AF4<>"",RIGHT(AF4,1)="^"),(LEFT(AF4,LEN(AF4)-1)),IF(AF4<>"",AF4,"")) ->  | GE4: =IF(AF4<>"",AG4,"") ->  | GF4: =IF(AF4<>"",AH4,"") ->  | GG4: =IF(AF4<>"",AI4,"") ->  | GH4: =IF(AF4<>"",AJ4,"") ->  | GI4: =IF(AF4<>"",AK4,"") -> 
A5: C^ | B5: 40 | C5: 44 | D5: 16 | E5: 0.3464101615 | F5: 0.36 | K5: =IF(B5>=$L$1,H5,IF($L$1="",H5,"")) ->  | L5: =IF(B5>=$L$1,I5,IF($L$1="",I5,"")) ->  | N5: =IF(B5<=$O$1,H5,IF($O$1="",H5,"")) ->  | O5: =IF(B5<=$O$1,I5,IF($O$1="",I5,"")) ->  | Q5: =IF(C5>=$R$1,H5,IF($R$1="",H5,"")) ->  | R5: =IF(C5>=$R$1,I5,IF($R$1="",I5,"")) ->  | T5: =IF(C5<=$U$1,H5,IF($U$1="",H5,"")) ->  | U5: =IF(C5<=$U$1,I5,IF($U$1="",I5,"")) ->  | W5: =IF(D5>=$X$1,H5,IF($X$1="",H5,"")) ->  | X5: =IF(D5>=$X$1,I5,IF($X$1="",I5,"")) ->  | Z5: =IF(D5<=$AA$1,H5,IF($AA$1="",H5,"")) ->  | AA5: =IF(D5<=$AA$1,I5,IF($AA$1="",I5,"")) ->  | AC5: =IF((AND(K5<>"",N5<>"",Q5<>"",T5<>"",W5<>"",Z5<>"")),E5,"") ->  | AD5: =IF((AND(L5<>"",O5<>"",R5<>"",U5<>"",X5<>"",AA5<>"")),F5,"") ->  | AG5: =IF(AC5<>"",B5,"") ->  | AM5: =IF(OR(AF5="C",AF5="C^"),AF5,"") ->  | AN5: =IF(OR(AF5="C",AF5="C^"),AG5,"") ->  | AO5: =IF(OR(AF5="C",AF5="C^"),AH5,"") ->  | AP5: =IF(OR(AF5="C",AF5="C^"),AI5,"") ->  | AQ5: =IF(OR(AF5="C",AF5="C^"),AJ5,"") ->  | AR5: =IF(OR(AF5="C",AF5="C^"),AK5,"") ->  | GD5: =IF(AND(AF5<>"",RIGHT(AF5,1)="^"),(LEFT(AF5,LEN(AF5)-1)),IF(AF5<>"",AF5,"")) ->  | GE5: =IF(AF5<>"",AG5,"") ->  | GF5: =IF(AF5<>"",AH5,"") ->  | GG5: =IF(AF5<>"",AI5,"") ->  | GH5: =IF(AF5<>"",AJ5,"") ->  | GI5: =IF(AF5<>"",AK5,"") -> 
A6: C^ | B6: 40 | C6: 43 | D6: 17 | E6: 0.3464101615 | F6: 0.37
A7: C^ | B7: 40 | C7: 42 | D7: 18 | E7: 0.3464101615 | F7: 0.38
A8: C^ | B8: 40 | C8: 41 | D8: 19 | E8: 0.3464101615 | F8: 0.39
A9: C^ | B9: 40 | C9: 40 | D9: 20 | E9: 0.3464101615 | F9: 0.4
A10: C^ | B10: 40 | C10: 39 | D10: 21 | E10: 0.3464101615 | F10: 0.41
A11: C^ | B11: 40 | C11: 38 | D11: 22 | E11: 0.3464101615 | F11: 0.42
A12: C^ | B12: 40 | C12: 37 | D12: 23 | E12: 0.3464101615 | F12: 0.43
A13: C^ | B13: 40 | C13: 36 | D13: 24 | E13: 0.3464101615 | F13: 0.44
A14: C^ | B14: 40 | C14: 35 | D14: 25 | E14: 0.3464101615 | F14: 0.45
A15: C^ | B15: 40 | C15: 34 | D15: 26 | E15: 0.3464101615 | F15: 0.46
A16: C^ | B16: 40 | C16: 33 | D16: 27 | E16: 0.3464101615 | F16: 0.47
A17: C^ | B17: 40 | C17: 32 | D17: 28 | E17: 0.3464101615 | F17: 0.48
A18: C^ | B18: 40 | C18: 31 | D18: 29 | E18: 0.3464101615 | F18: 0.49
A19: C^ | B19: 40 | C19: 30 | D19: 30 | E19: 0.3464101615 | F19: 0.5
A20: C^ | B20: 40 | C20: 29 | D20: 31 | E20: 0.3464101615 | F20: 0.51
A21: C^ | B21: 40 | C21: 28 | D21: 32 | E21: 0.3464101615 | F21: 0.52
A22: C^ | B22: 40 | C22: 27 | D22: 33 | E22: 0.3464101615 | F22: 0.53
A23: C^ | B23: 40 | C23: 26 | D23: 34 | E23: 0.3464101615 | F23: 0.54
A24: C^ | B24: 40 | C24: 25 | D24: 35 | E24: 0.3464101615 | F24: 0.55
A25: C^ | B25: 40 | C25: 24 | D25: 36 | E25: 0.3464101615 | F25: 0.56
A26: C^ | B26: 40 | C26: 23 | D26: 37 | E26: 0.3464101615 | F26: 0.57
A27: C^ | B27: 40 | C27: 22 | D27: 38 | E27: 0.3464101615 | F27: 0.58
A28: C^ | B28: 40 | C28: 21 | D28: 39 | E28: 0.3464101615 | F28: 0.59
A29: C^ | B29: 40 | C29: 20 | D29: 40 | E29: 0.3464101615 | F29: 0.6
A30: C^ | B30: 41 | C30: 45 | D30: 14 | E30: 0.3550704156 | F30: 0.345
A31: C | B31: 41 | C31: 44 | D31: 15 | E31: 0.3550704156 | F31: 0.355
A32: C | B32: 41 | C32: 43 | D32: 16 | E32: 0.3550704156 | F32: 0.365
A33: C | B33: 41 | C33: 42 | D33: 17 | E33: 0.3550704156 | F33: 0.375
A34: C | B34: 41 | C34: 41 | D34: 18 | E34: 0.3550704156 | F34: 0.385
A35: C | B35: 41 | C35: 40 | D35: 19 | E35: 0.3550704156 | F35: 0.395
A36: C | B36: 41 | C36: 39 | D36: 20 | E36: 0.3550704156 | F36: 0.405
A37: C | B37: 41 | C37: 38 | D37: 21 | E37: 0.3550704156 | F37: 0.415
A38: C | B38: 41 | C38: 37 | D38: 22 | E38: 0.3550704156 | F38: 0.425
A39: C | B39: 41 | C39: 36 | D39: 23 | E39: 0.3550704156 | F39: 0.435
A40: C | B40: 41 | C40: 35 | D40: 24 | E40: 0.3550704156 | F40: 0.445
A41: C | B41: 41 | C41: 34 | D41: 25 | E41: 0.3550704156 | F41: 0.455
A42: C | B42: 41 | C42: 33 | D42: 26 | E42: 0.3550704156 | F42: 0.465
A43: C | B43: 41 | C43: 32 | D43: 27 | E43: 0.3550704156 | F43: 0.475
A44: C | B44: 41 | C44: 31 | D44: 28 | E44: 0.3550704156 | F44: 0.485
A45: C | B45: 41 | C45: 30 | D45: 29 | E45: 0.3550704156 | F45: 0.495
A46: C | B46: 41 | C46: 29 | D46: 30 | E46: 0.3550704156 | F46: 0.505
A47: C | B47: 41 | C47: 28 | D47: 31 | E47: 0.3550704156 | F47: 0.515
A48: C | B48: 41 | C48: 27 | D48: 32 | E48: 0.3550704156 | F48: 0.525
A49: C | B49: 41 | C49: 26 | D49: 33 | E49: 0.3550704156 | F49: 0.535
A50: C | B50: 41 | C50: 25 | D50: 34 | E50: 0.3550704156 | F50: 0.545
A51: C | B51: 41 | C51: 24 | D51: 35 | E51: 0.3550704156 | F51: 0.555
A52: C | B52: 41 | C52: 23 | D52: 36 | E52: 0.3550704156 | F52: 0.565
A53: C | B53: 41 | C53: 22 | D53: 37 | E53: 0.3550704156 | F53: 0.575
A54: C | B54: 41 | C54: 21 | D54: 38 | E54: 0.3550704156 | F54: 0.585
A55: C | B55: 41 | C55: 20 | D55: 39 | E55: 0.3550704156 | F55: 0.595
A56: C^ | B56: 41 | C56: 19 | D56: 40 | E56: 0.3550704156 | F56: 0.605
A57: C^ | B57: 42 | C57: 45 | D57: 13 | E57: 0.3637306696 | F57: 0.34
A58: C | B58: 42 | C58: 44 | D58: 14 | E58: 0.3637306696 | F58: 0.35
A59: C | B59: 42 | C59: 43 | D59: 15 | E59: 0.3637306696 | F59: 0.36
A60: C | B60: 42 | C60: 42 | D60: 16 | E60: 0.3637306696 | F60: 0.37
A61: C | B61: 42 | C61: 41 | D61: 17 | E61: 0.3637306696 | F61: 0.38
A62: C | B62: 42 | C62: 40 | D62: 18 | E62: 0.3637306696 | F62: 0.39
A63: C | B63: 42 | C63: 39 | D63: 19 | E63: 0.3637306696 | F63: 0.4
A64: C | B64: 42 | C64: 38 | D64: 20 | E64: 0.3637306696 | F64: 0.41
A65: C | B65: 42 | C65: 37 | D65: 21 | E65: 0.3637306696 | F65: 0.42
A66: C | B66: 42 | C66: 36 | D66: 22 | E66: 0.3637306696 | F66: 0.43
A67: C | B67: 42 | C67: 35 | D67: 23 | E67: 0.3637306696 | F67: 0.44
A68: C | B68: 42 | C68: 34 | D68: 24 | E68: 0.3637306696 | F68: 0.45 | H68: =IF(mySwitch_C_1=1,E68,"") ->  | I68: =IF(mySwitch_C_1=1,F68,"") ->  | AF68: =IF(AC68<>"",A68,"") ->  | AG68: =IF(AC68<>"",B68,"") ->  | AH68: =IF(AC68<>"",C68,"") ->  | AI68: =IF(AC68<>"",D68,"") ->  | AJ68: =IF(AC68<>"",E68,"") ->  | AK68: =IF(AC68<>"",F68,"") -> 
A69: C | B69: 42 | C69: 33 | D69: 25 | E69: 0.3637306696 | F69: 0.46 | K69: =IF(B69>=$L$1,H69,IF($L$1="",H69,"")) ->  | L69: =IF(B69>=$L$1,I69,IF($L$1="",I69,"")) ->  | N69: =IF(B69<=$O$1,H69,IF($O$1="",H69,"")) ->  | O69: =IF(B69<=$O$1,I69,IF($O$1="",I69,"")) ->  | Q69: =IF(C69>=$R$1,H69,IF($R$1="",H69,"")) ->  | R69: =IF(C69>=$R$1,I69,IF($R$1="",I69,"")) ->  | T69: =IF(C69<=$U$1,H69,IF($U$1="",H69,"")) ->  | U69: =IF(C69<=$U$1,I69,IF($U$1="",I69,"")) ->  | W69: =IF(D69>=$X$1,H69,IF($X$1="",H69,"")) ->  | X69: =IF(D69>=$X$1,I69,IF($X$1="",I69,"")) ->  | Z69: =IF(D69<=$AA$1,H69,IF($AA$1="",H69,"")) ->  | AA69: =IF(D69<=$AA$1,I69,IF($AA$1="",I69,"")) ->  | AC69: =IF((AND(K69<>"",N69<>"",Q69<>"",T69<>"",W69<>"",Z69<>"")),E69,"") ->  | AD69: =IF((AND(L69<>"",O69<>"",R69<>"",U69<>"",X69<>"",AA69<>"")),F69,"") ->  | AM69: =IF(OR(AF69="C",AF69="C^"),AF69,"") ->  | AN69: =IF(OR(AF69="C",AF69="C^"),AG69,"") ->  | AO69: =IF(OR(AF69="C",AF69="C^"),AH69,"") ->  | AP69: =IF(OR(AF69="C",AF69="C^"),AI69,"") ->  | AQ69: =IF(OR(AF69="C",AF69="C^"),AJ69,"") ->  | AR69: =IF(OR(AF69="C",AF69="C^"),AK69,"") ->  | GD69: =IF(AND(AF69<>"",RIGHT(AF69,1)="^"),(LEFT(AF69,LEN(AF69)-1)),IF(AF69<>"",AF69,"")) ->  | GE69: =IF(AF69<>"",AG69,"") ->  | GF69: =IF(AF69<>"",AH69,"") ->  | GG69: =IF(AF69<>"",AI69,"") ->  | GH69: =IF(AF69<>"",AJ69,"") ->  | GI69: =IF(AF69<>"",AK69,"") -> 
A70: C | B70: 42 | C70: 32 | D70: 26 | E70: 0.3637306696 | F70: 0.47
A71: C | B71: 42 | C71: 31 | D71: 27 | E71: 0.3637306696 | F71: 0.48
A72: C | B72: 42 | C72: 30 | D72: 28 | E72: 0.3637306696 | F72: 0.49
A73: C | B73: 42 | C73: 29 | D73: 29 | E73: 0.3637306696 | F73: 0.5
A74: C | B74: 42 | C74: 28 | D74: 30 | E74: 0.3637306696 | F74: 0.51
A75: C | B75: 42 | C75: 27 | D75: 31 | E75: 0.3637306696 | F75: 0.52
A76: C | B76: 42 | C76: 26 | D76: 32 | E76: 0.3637306696 | F76: 0.53
A77: C | B77: 42 | C77: 25 | D77: 33 | E77: 0.3637306696 | F77: 0.54
A78: C | B78: 42 | C78: 24 | D78: 34 | E78: 0.3637306696 | F78: 0.55
A79: C | B79: 42 | C79: 23 | D79: 35 | E79: 0.3637306696 | F79: 0.56
A80: C | B80: 42 | C80: 22 | D80: 36 | E80: 0.3637306696 | F80: 0.57
A81: C | B81: 42 | C81: 21 | D81: 37 | E81: 0.3637306696 | F81: 0.58
A82: C | B82: 42 | C82: 20 | D82: 38 | E82: 0.3637306696 | F82: 0.59
A83: C | B83: 42 | C83: 19 | D83: 39 | E83: 0.3637306696 | F83: 0.6
A84: C^ | B84: 42 | C84: 18 | D84: 40 | E84: 0.3637306696 | F84: 0.61
A85: C^ | B85: 43 | C85: 45 | D85: 12 | E85: 0.3723909236 | F85: 0.335
A86: C | B86: 43 | C86: 44 | D86: 13 | E86: 0.3723909236 | F86: 0.345
A87: C | B87: 43 | C87: 43 | D87: 14 | E87: 0.3723909236 | F87: 0.355
A88: C | B88: 43 | C88: 42 | D88: 15 | E88: 0.3723909236 | F88: 0.365
A89: C | B89: 43 | C89: 41 | D89: 16 | E89: 0.3723909236 | F89: 0.375
A90: C | B90: 43 | C90: 40 | D90: 17 | E90: 0.3723909236 | F90: 0.385
A91: C | B91: 43 | C91: 39 | D91: 18 | E91: 0.3723909236 | F91: 0.395
A92: C | B92: 43 | C92: 38 | D92: 19 | E92: 0.3723909236 | F92: 0.405
A93: C | B93: 43 | C93: 37 | D93: 20 | E93: 0.3723909236 | F93: 0.415
A94: C | B94: 43 | C94: 36 | D94: 21 | E94: 0.3723909236 | F94: 0.425
A95: C | B95: 43 | C95: 35 | D95: 22 | E95: 0.3723909236 | F95: 0.435
A96: C | B96: 43 | C96: 34 | D96: 23 | E96: 0.3723909236 | F96: 0.445
A97: C | B97: 43 | C97: 33 | D97: 24 | E97: 0.3723909236 | F97: 0.455
A98: C | B98: 43 | C98: 32 | D98: 25 | E98: 0.3723909236 | F98: 0.465
A99: C | B99: 43 | C99: 31 | D99: 26 | E99: 0.3723909236 | F99: 0.475
A100: C | B100: 43 | C100: 30 | D100: 27 | E100: 0.3723909236 | F100: 0.485
A101: C | B101: 43 | C101: 29 | D101: 28 | E101: 0.3723909236 | F101: 0.495
A102: C | B102: 43 | C102: 28 | D102: 29 | E102: 0.3723909236 | F102: 0.505
A103: C | B103: 43 | C103: 27 | D103: 30 | E103: 0.3723909236 | F103: 0.515
A104: C | B104: 43 | C104: 26 | D104: 31 | E104: 0.3723909236 | F104: 0.525
A105: C | B105: 43 | C105: 25 | D105: 32 | E105: 0.3723909236 | F105: 0.535
A106: C | B106: 43 | C106: 24 | D106: 33 | E106: 0.3723909236 | F106: 0.545
A107: C | B107: 43 | C107: 23 | D107: 34 | E107: 0.3723909236 | F107: 0.555
A108: C | B108: 43 | C108: 22 | D108: 35 | E108: 0.3723909236 | F108: 0.565
A109: C | B109: 43 | C109: 21 | D109: 36 | E109: 0.3723909236 | F109: 0.575
A110: C | B110: 43 | C110: 20 | D110: 37 | E110: 0.3723909236 | F110: 0.585
A111: C | B111: 43 | C111: 19 | D111: 38 | E111: 0.3723909236 | F111: 0.595
A112: C | B112: 43 | C112: 18 | D112: 39 | E112: 0.3723909236 | F112: 0.605
A113: C^ | B113: 43 | C113: 17 | D113: 40 | E113: 0.3723909236 | F113: 0.615
A114: C^ | B114: 44 | C114: 45 | D114: 11 | E114: 0.3810511777 | F114: 0.33
A115: C | B115: 44 | C115: 44 | D115: 12 | E115: 0.3810511777 | F115: 0.34
A116: C | B116: 44 | C116: 43 | D116: 13 | E116: 0.3810511777 | F116: 0.35
A117: C | B117: 44 | C117: 42 | D117: 14 | E117: 0.3810511777 | F117: 0.36
A118: C | B118: 44 | C118: 41 | D118: 15 | E118: 0.3810511777 | F118: 0.37
A119: C | B119: 44 | C119: 40 | D119: 16 | E119: 0.3810511777 | F119: 0.38
A120: C | B120: 44 | C120: 39 | D120: 17 | E120: 0.3810511777 | F120: 0.39
A121: C | B121: 44 | C121: 38 | D121: 18 | E121: 0.3810511777 | F121: 0.4
A122: C | B122: 44 | C122: 37 | D122: 19 | E122: 0.3810511777 | F122: 0.41
A123: C | B123: 44 | C123: 36 | D123: 20 | E123: 0.3810511777 | F123: 0.42
A124: C | B124: 44 | C124: 35 | D124: 21 | E124: 0.3810511777 | F124: 0.43
A125: C | B125: 44 | C125: 34 | D125: 22 | E125: 0.3810511777 | F125: 0.44
A126: C | B126: 44 | C126: 33 | D126: 23 | E126: 0.3810511777 | F126: 0.45
A127: C | B127: 44 | C127: 32 | D127: 24 | E127: 0.3810511777 | F127: 0.46
A128: C | B128: 44 | C128: 31 | D128: 25 | E128: 0.3810511777 | F128: 0.47
A129: C | B129: 44 | C129: 30 | D129: 26 | E129: 0.3810511777 | F129: 0.48
A130: C | B130: 44 | C130: 29 | D130: 27 | E130: 0.3810511777 | F130: 0.49
A131: C | B131: 44 | C131: 28 | D131: 28 | E131: 0.3810511777 | F131: 0.5
A132: C | B132: 44 | C132: 27 | D132: 29 | E132: 0.3810511777 | F132: 0.51 | H132: =IF(mySwitch_C_1=1,E132,"") ->  | I132: =IF(mySwitch_C_1=1,F132,"") ->  | AF132: =IF(AC132<>"",A132,"") ->  | AG132: =IF(AC132<>"",B132,"") ->  | AH132: =IF(AC132<>"",C132,"") ->  | AI132: =IF(AC132<>"",D132,"") ->  | AJ132: =IF(AC132<>"",E132,"") ->  | AK132: =IF(AC132<>"",F132,"") -> 
A133: C | B133: 44 | C133: 26 | D133: 30 | E133: 0.3810511777 | F133: 0.52 | K133: =IF(B133>=$L$1,H133,IF($L$1="",H133,"")) ->  | L133: =IF(B133>=$L$1,I133,IF($L$1="",I133,"")) ->  | N133: =IF(B133<=$O$1,H133,IF($O$1="",H133,"")) ->  | O133: =IF(B133<=$O$1,I133,IF($O$1="",I133,"")) ->  | Q133: =IF(C133>=$R$1,H133,IF($R$1="",H133,"")) ->  | R133: =IF(C133>=$R$1,I133,IF($R$1="",I133,"")) ->  | T133: =IF(C133<=$U$1,H133,IF($U$1="",H133,"")) ->  | U133: =IF(C133<=$U$1,I133,IF($U$1="",I133,"")) ->  | W133: =IF(D133>=$X$1,H133,IF($X$1="",H133,"")) ->  | X133: =IF(D133>=$X$1,I133,IF($X$1="",I133,"")) ->  | Z133: =IF(D133<=$AA$1,H133,IF($AA$1="",H133,"")) ->  | AA133: =IF(D133<=$AA$1,I133,IF($AA$1="",I133,"")) ->  | AC133: =IF((AND(K133<>"",N133<>"",Q133<>"",T133<>"",W133<>"",Z133<>"")),E133,"") ->  | AD133: =IF((AND(L133<>"",O133<>"",R133<>"",U133<>"",X133<>"",AA133<>"")),F133,"") ->  | AM133: =IF(OR(AF133="C",AF133="C^"),AF133,"") ->  | AN133: =IF(OR(AF133="C",AF133="C^"),AG133,"") ->  | AO133: =IF(OR(AF133="C",AF133="C^"),AH133,"") ->  | AP133: =IF(OR(AF133="C",AF133="C^"),AI133,"") ->  | AQ133: =IF(OR(AF133="C",AF133="C^"),AJ133,"") ->  | AR133: =IF(OR(AF133="C",AF133="C^"),AK133,"") ->  | GD133: =IF(AND(AF133<>"",RIGHT(AF133,1)="^"),(LEFT(AF133,LEN(AF133)-1)),IF(AF133<>"",AF133,"")) ->  | GE133: =IF(AF133<>"",AG133,"") ->  | GF133: =IF(AF133<>"",AH133,"") ->  | GG133: =IF(AF133<>"",AI133,"") ->  | GH133: =IF(AF133<>"",AJ133,"") ->  | GI133: =IF(AF133<>"",AK133,"") -> 
A134: C | B134: 44 | C134: 25 | D134: 31 | E134: 0.3810511777 | F134: 0.53
A135: C | B135: 44 | C135: 24 | D135: 32 | E135: 0.3810511777 | F135: 0.54
A136: C | B136: 44 | C136: 23 | D136: 33 | E136: 0.3810511777 | F136: 0.55
A137: C | B137: 44 | C137: 22 | D137: 34 | E137: 0.3810511777 | F137: 0.56
A138: C | B138: 44 | C138: 21 | D138: 35 | E138: 0.3810511777 | F138: 0.57
A139: C | B139: 44 | C139: 20 | D139: 36 | E139: 0.3810511777 | F139: 0.58
A140: C | B140: 44 | C140: 19 | D140: 37 | E140: 0.3810511777 | F140: 0.59
A141: C | B141: 44 | C141: 18 | D141: 38 | E141: 0.3810511777 | F141: 0.6
A142: C | B142: 44 | C142: 17 | D142: 39 | E142: 0.3810511777 | F142: 0.61
A143: C^ | B143: 44 | C143: 16 | D143: 40 | E143: 0.3810511777 | F143: 0.62
A144: C^ | B144: 45 | C144: 45 | D144: 10 | E144: 0.3897114317 | F144: 0.325
A145: C | B145: 45 | C145: 44 | D145: 11 | E145: 0.3897114317 | F145: 0.335
A146: C | B146: 45 | C146: 43 | D146: 12 | E146: 0.3897114317 | F146: 0.345
A147: C | B147: 45 | C147: 42 | D147: 13 | E147: 0.3897114317 | F147: 0.355
A148: C | B148: 45 | C148: 41 | D148: 14 | E148: 0.3897114317 | F148: 0.365
A149: C | B149: 45 | C149: 40 | D149: 15 | E149: 0.3897114317 | F149: 0.375
A150: C | B150: 45 | C150: 39 | D150: 16 | E150: 0.3897114317 | F150: 0.385
A151: C | B151: 45 | C151: 38 | D151: 17 | E151: 0.3897114317 | F151: 0.395
A152: C | B152: 45 | C152: 37 | D152: 18 | E152: 0.3897114317 | F152: 0.405
A153: C | B153: 45 | C153: 36 | D153: 19 | E153: 0.3897114317 | F153: 0.415
A154: C | B154: 45 | C154: 35 | D154: 20 | E154: 0.3897114317 | F154: 0.425
A155: C | B155: 45 | C155: 34 | D155: 21 | E155: 0.3897114317 | F155: 0.435
A156: C | B156: 45 | C156: 33 | D156: 22 | E156: 0.3897114317 | F156: 0.445
A157: C | B157: 45 | C157: 32 | D157: 23 | E157: 0.3897114317 | F157: 0.455
A158: C | B158: 45 | C158: 31 | D158: 24 | E158: 0.3897114317 | F158: 0.465
A159: C | B159: 45 | C159: 30 | D159: 25 | E159: 0.3897114317 | F159: 0.475
A160: C | B160: 45 | C160: 29 | D160: 26 | E160: 0.3897114317 | F160: 0.485
A161: C | B161: 45 | C161: 28 | D161: 27 | E161: 0.3897114317 | F161: 0.495
A162: C | B162: 45 | C162: 27 | D162: 28 | E162: 0.3897114317 | F162: 0.505
A163: C | B163: 45 | C163: 26 | D163: 29 | E163: 0.3897114317 | F163: 0.515
A164: C | B164: 45 | C164: 25 | D164: 30 | E164: 0.3897114317 | F164: 0.525
A165: C | B165: 45 | C165: 24 | D165: 31 | E165: 0.3897114317 | F165: 0.535
A166: C | B166: 45 | C166: 23 | D166: 32 | E166: 0.3897114317 | F166: 0.545
A167: C | B167: 45 | C167: 22 | D167: 33 | E167: 0.3897114317 | F167: 0.555
A168: C | B168: 45 | C168: 21 | D168: 34 | E168: 0.3897114317 | F168: 0.565
A169: C | B169: 45 | C169: 20 | D169: 35 | E169: 0.3897114317 | F169: 0.575
A170: C | B170: 45 | C170: 19 | D170: 36 | E170: 0.3897114317 | F170: 0.585
A171: C | B171: 45 | C171: 18 | D171: 37 | E171: 0.3897114317 | F171: 0.595
A172: C | B172: 45 | C172: 17 | D172: 38 | E172: 0.3897114317 | F172: 0.605
A173: C | B173: 45 | C173: 16 | D173: 39 | E173: 0.3897114317 | F173: 0.615
A174: C^ | B174: 45 | C174: 15 | D174: 40 | E174: 0.3897114317 | F174: 0.625
A175: C^ | B175: 46 | C175: 45 | D175: 9 | E175: 0.3983716857 | F175: 0.32
A176: C | B176: 46 | C176: 44 | D176: 10 | E176: 0.3983716857 | F176: 0.33
A177: C | B177: 46 | C177: 43 | D177: 11 | E177: 0.3983716857 | F177: 0.34
A178: C | B178: 46 | C178: 42 | D178: 12 | E178: 0.3983716857 | F178: 0.35
A179: C | B179: 46 | C179: 41 | D179: 13 | E179: 0.3983716857 | F179: 0.36
A180: C | B180: 46 | C180: 40 | D180: 14 | E180: 0.3983716857 | F180: 0.37
A181: C | B181: 46 | C181: 39 | D181: 15 | E181: 0.3983716857 | F181: 0.38
A182: C | B182: 46 | C182: 38 | D182: 16 | E182: 0.3983716857 | F182: 0.39
A183: C | B183: 46 | C183: 37 | D183: 17 | E183: 0.3983716857 | F183: 0.4
A184: C | B184: 46 | C184: 36 | D184: 18 | E184: 0.3983716857 | F184: 0.41
A185: C | B185: 46 | C185: 35 | D185: 19 | E185: 0.3983716857 | F185: 0.42
A186: C | B186: 46 | C186: 34 | D186: 20 | E186: 0.3983716857 | F186: 0.43
A187: C | B187: 46 | C187: 33 | D187: 21 | E187: 0.3983716857 | F187: 0.44
A188: C | B188: 46 | C188: 32 | D188: 22 | E188: 0.3983716857 | F188: 0.45
A189: C | B189: 46 | C189: 31 | D189: 23 | E189: 0.3983716857 | F189: 0.46
A190: C | B190: 46 | C190: 30 | D190: 24 | E190: 0.3983716857 | F190: 0.47
A191: C | B191: 46 | C191: 29 | D191: 25 | E191: 0.3983716857 | F191: 0.48
A192: C | B192: 46 | C192: 28 | D192: 26 | E192: 0.3983716857 | F192: 0.49
A193: C | B193: 46 | C193: 27 | D193: 27 | E193: 0.3983716857 | F193: 0.5
A194: C | B194: 46 | C194: 26 | D194: 28 | E194: 0.3983716857 | F194: 0.51
A195: C | B195: 46 | C195: 25 | D195: 29 | E195: 0.3983716857 | F195: 0.52
A196: C | B196: 46 | C196: 24 | D196: 30 | E196: 0.3983716857 | F196: 0.53 | H196: =IF(mySwitch_C_1=1,E196,"") ->  | I196: =IF(mySwitch_C_1=1,F196,"") ->  | AF196: =IF(AC196<>"",A196,"") ->  | AG196: =IF(AC196<>"",B196,"") ->  | AH196: =IF(AC196<>"",C196,"") ->  | AI196: =IF(AC196<>"",D196,"") ->  | AJ196: =IF(AC196<>"",E196,"") ->  | AK196: =IF(AC196<>"",F196,"") -> 
A197: C | B197: 46 | C197: 23 | D197: 31 | E197: 0.3983716857 | F197: 0.54 | K197: =IF(B197>=$L$1,H197,IF($L$1="",H197,"")) ->  | L197: =IF(B197>=$L$1,I197,IF($L$1="",I197,"")) ->  | N197: =IF(B197<=$O$1,H197,IF($O$1="",H197,"")) ->  | O197: =IF(B197<=$O$1,I197,IF($O$1="",I197,"")) ->  | Q197: =IF(C197>=$R$1,H197,IF($R$1="",H197,"")) ->  | R197: =IF(C197>=$R$1,I197,IF($R$1="",I197,"")) ->  | T197: =IF(C197<=$U$1,H197,IF($U$1="",H197,"")) ->  | U197: =IF(C197<=$U$1,I197,IF($U$1="",I197,"")) ->  | W197: =IF(D197>=$X$1,H197,IF($X$1="",H197,"")) ->  | X197: =IF(D197>=$X$1,I197,IF($X$1="",I197,"")) ->  | Z197: =IF(D197<=$AA$1,H197,IF($AA$1="",H197,"")) ->  | AA197: =IF(D197<=$AA$1,I197,IF($AA$1="",I197,"")) ->  | AC197: =IF((AND(K197<>"",N197<>"",Q197<>"",T197<>"",W197<>"",Z197<>"")),E197,"") ->  | AD197: =IF((AND(L197<>"",O197<>"",R197<>"",U197<>"",X197<>"",AA197<>"")),F197,"") ->  | AM197: =IF(OR(AF197="C",AF197="C^"),AF197,"") ->  | AN197: =IF(OR(AF197="C",AF197="C^"),AG197,"") ->  | AO197: =IF(OR(AF197="C",AF197="C^"),AH197,"") ->  | AP197: =IF(OR(AF197="C",AF197="C^"),AI197,"") ->  | AQ197: =IF(OR(AF197="C",AF197="C^"),AJ197,"") ->  | AR197: =IF(OR(AF197="C",AF197="C^"),AK197,"") ->  | GD197: =IF(AND(AF197<>"",RIGHT(AF197,1)="^"),(LEFT(AF197,LEN(AF197)-1)),IF(AF197<>"",AF197,"")) ->  | GE197: =IF(AF197<>"",AG197,"") ->  | GF197: =IF(AF197<>"",AH197,"") ->  | GG197: =IF(AF197<>"",AI197,"") ->  | GH197: =IF(AF197<>"",AJ197,"") ->  | GI197: =IF(AF197<>"",AK197,"") -> 
A198: C | B198: 46 | C198: 22 | D198: 32 | E198: 0.3983716857 | F198: 0.55
A199: C | B199: 46 | C199: 21 | D199: 33 | E199: 0.3983716857 | F199: 0.56
A200: C | B200: 46 | C200: 20 | D200: 34 | E200: 0.3983716857 | F200: 0.57
... 354 more rows

Sheet CombinedLimits (hidden)
A1: Combined Limits
A3: Tex | B3: Clay | C3: Silt | D3: Sand | E3: Y | F3: X
